Workbook

Sheet Tableau
A1: Rang | B1: NOM Prénom | C1: Points | E1: Pos | F1: Poule A | G1: Class. | K1: PRINCIPAL 1/8 F | L1: Table | N1: 1/4 F | O1: Table | Q1: 1/2 F | R1: Table | T1: Finale | U1: Table | W1: Class. | X1: Classement final | Z1: ATTENTION, NE PAS LANCER DE 1/8 DE FINALE AVANT D'AVOIR : 1) TERMINE LES POULES 2) FAIT LE DEPARTAGE MANUEL DES EX AEQUO DANS LES POULES LE CAS ECHEANT 3) CLIQUE SUR LE BOUTON MAJ CLT SERVANT A DETERMINER LES MEILLEURS 3E DE POULES
A2: 1* | B2: Lik | C2: 14 | E2: 1 | F2: =B2 -> Lik | G2: =INDEX('Poules A - B'!$J$16:$M$16,MATCH(Tableau!E2,'Poules A - B'!$J$8:$M$8,0)) -> 1 | H2: =IF(G2="","",G2&RIGHT($F$1,1)) -> 1A | J2: 1A | K2: =IF(ISNA(INDEX($F$2:$F$30,MATCH(J2,$H$2:$H$30,0))),"",INDEX($F$2:$F$30,MATCH(J2,$H$2:$H$30,0))) -> Lik | L2: G | M2: G | N2: =IF(L2="","",IF(L2="G",K2,K3)) -> Lik | O2: G | P2: G | Q2: =IF(O2="","",IF(O2="G",N2,N3)) -> Lik | R2: G | S2: G | T2: =IF(R2="","",IF(R2="G",Q2,Q3)) -> Lik | U2: P | W2: 1 | X2: =IF(U2="","",IF(U2="G",T2,T3)) -> Zan
A3: 2* | B3: Zan | C3: 13 | E3: 2 | F3: =B13 -> Noël | G3: =INDEX('Poules A - B'!$J$16:$M$16,MATCH(Tableau!E3,'Poules A - B'!$J$8:$M$8,0)) -> 2 | H3: =IF(G3="","",G3&RIGHT($F$1,1)) -> 2A | J3: 4e meill. 3e | K3: =B36 -> Romain | M3: G | N3: =IF(L5="","",IF(L5="G",K5,K6)) -> Maxime | P3: G | Q3: =IF(O5="","",IF(O5="G",N5,N6)) -> Sebden | S3: G | T3: =IF(R5="","",IF(R5="G",Q5,Q6)) -> Zan | W3: 2 | X3: =IF(U2="","",IF(U2="P",T2,T3)) -> Lik
A4: 3* | B4: Matthieu | C4: 11 | E4: 3 | F4: =B14 -> SebAZ | G4: =INDEX('Poules A - B'!$J$16:$M$16,MATCH(Tableau!E4,'Poules A - B'!$J$8:$M$8,0)) -> 3 | H4: =IF(G4="","",G4&RIGHT($F$1,1)) -> 3A | T4: 3 / 4 | W4: 3 | X4: =IF(U5="","",IF(U5="G",T5,T6)) -> Sebden
A5: 4* | B5: Sebden | C5: 10 | E5: 4 | F5: =B25 -> 0 | G5: =INDEX('Poules A - B'!$J$16:$M$16,MATCH(Tableau!E5,'Poules A - B'!$J$8:$M$8,0)) -> 4 | H5: =IF(G5="","",G5&RIGHT($F$1,1)) -> 4A | J5: 2F | K5: =IF(ISNA(INDEX($F$2:$F$30,MATCH(J5,$H$2:$H$30,0))),"",INDEX($F$2:$F$30,MATCH(J5,$H$2:$H$30,0))) -> Maxime | L5: G | M5: G | N5: =IF(L8="","",IF(L8="G",K8,K9)) -> Tom | O5: P | P5: G | Q5: =IF(O8="","",IF(O8="G",N8,N9)) -> Matthieu | R5: P | S5: P | T5: =IF(R2="","",IF(R2="P",Q2,Q3)) -> Sebden | U5: G | W5: 4 | X5: =IF(U5="","",IF(U5="P",T5,T6)) -> Matthieu
A6: 5* | B6: Tom | C6: 9 | F6: Poule B | J6: 2B | K6: =IF(ISNA(INDEX($F$2:$F$30,MATCH(J6,$H$2:$H$30,0))),"",INDEX($F$2:$F$30,MATCH(J6,$H$2:$H$30,0))) -> Ariel | M6: G | N6: =IF(L11="","",IF(L11="G",K11,K12)) -> Sebden | P6: G | Q6: =IF(O11="","",IF(O11="G",N11,N12)) -> Zan | S6: P | T6: =IF(R5="","",IF(R5="P",Q5,Q6)) -> Matthieu | W6: 5 | X6: =IF(U8="","",IF(U8="G",T8,T9)) -> Tom
A7: 6* | B7: Flo | C7: 8 | E7: 1 | F7: =B3 -> Zan | G7: =INDEX('Poules A - B'!$J$33:$M$33,MATCH(Tableau!E7,'Poules A - B'!$J$25:$M$25,0)) -> 1 | H7: =IF(G7="","",G7&RIGHT($F$6,1)) -> 1B | Q7: 5 à 8 | T7: 5 / 6 | W7: 6 | X7: =IF(U8="","",IF(U8="P",T8,T9)) -> Flo | Z7: ATTENTION, NE PAS LANCER DE 1/8 DE FINALE AVANT D'AVOIR : 1) TERMINE LES POULES 2) FAIT LE DEPARTAGE MANUEL DES EX AEQUO DANS LES POULES LE CAS ECHEANT 3) CLIQUE SUR LE BOUTON MAJ CLT SERVANT A DETERMINER LES MEILLEURS 3E DE POULES
A8: 7 | B8: Maxime | C8: 7 | E8: 2 | F8: =B12 -> Ariel | G8: =INDEX('Poules A - B'!$J$33:$M$33,MATCH(Tableau!E8,'Poules A - B'!$J$25:$M$25,0)) -> 2 | H8: =IF(G8="","",G8&RIGHT($F$6,1)) -> 2B | J8: 1E | K8: =IF(ISNA(INDEX($F$2:$F$30,MATCH(J8,$H$2:$H$30,0))),"",INDEX($F$2:$F$30,MATCH(J8,$H$2:$H$30,0))) -> Tom | L8: G | M8: G | N8: =IF(L14="","",IF(L14="G",K14,K15)) -> Matthieu | O8: G | P8: P | Q8: =IF(O2="","",IF(O2="P",N2,N3)) -> Maxime | R8: P | S8: G | T8: =IF(R8="","",IF(R8="G",Q8,Q9)) -> Tom | U8: G | W8: 7 | X8: =IF(U11="","",IF(U11="G",T11,T12)) -> Maxime
A9: 8 | B9: Val | C9: 7 | E9: 3 | F9: =B15 -> Stephane | G9: =INDEX('Poules A - B'!$J$33:$M$33,MATCH(Tableau!E9,'Poules A - B'!$J$25:$M$25,0)) -> 3 | H9: =IF(G9="","",G9&RIGHT($F$6,1)) -> 3B | J9: 2C | K9: Axel | M9: G | N9: =IF(L17="","",IF(L17="G",K17,K18)) -> Flo | P9: P | Q9: =IF(O5="","",IF(O5="P",N5,N6)) -> Tom | S9: G | T9: =IF(R11="","",IF(R11="G",Q11,Q12)) -> Flo | W9: 8 | X9: =IF(U11="","",IF(U11="P",T11,T12)) -> Noël
A10: 9 | B10: Eric | C10: 7 | E10: 4 | F10: =B24 -> 0 | G10: =INDEX('Poules A - B'!$J$33:$M$33,MATCH(Tableau!E10,'Poules A - B'!$J$25:$M$25,0)) -> 4 | H10: =IF(G10="","",G10&RIGHT($F$6,1)) -> 4B | T10: 7 / 8 | W10: 9 | X10: =IF(U14="","",IF(U14="G",T14,T15)) -> Ariel
A11: 10 | B11: KarineA | C11: 7 | F11: Poule C | J11: Meill. 3e | K11: =B33 -> Stephane | L11: P | M11: G | N11: =IF(L20="","",IF(L20="G",K20,K21)) -> Noël | O11: P | P11: P | Q11: =IF(O8="","",IF(O8="P",N8,N9)) -> Flo | R11: G | S11: P | T11: =IF(R8="","",IF(R8="P",Q8,Q9)) -> Maxime | U11: G | W11: 10 | X11: =IF(U14="","",IF(U14="P",T14,T15)) -> SebAZ
A12: 11 | B12: Ariel | C12: 6 | E12: 1 | F12: =B4 -> Matthieu | G12: =INDEX('Poules C - D'!$J$16:$M$16,MATCH(Tableau!E12,'Poules C - D'!$J$8:$M$8,0)) -> 1 | H12: =IF(G12="","",G12&RIGHT($F$11,1)) -> 1C | J12: 1D | K12: =IF(ISNA(INDEX($F$2:$F$30,MATCH(J12,$H$2:$H$30,0))),"",INDEX($F$2:$F$30,MATCH(J12,$H$2:$H$30,0))) -> Sebden | M12: G | N12: =IF(L23="","",IF(L23="G",K23,K24)) -> Zan | P12: P | Q12: =IF(O11="","",IF(O11="P",N11,N12)) -> Noël | S12: P | T12: =IF(R11="","",IF(R11="P",Q11,Q12)) -> Noël | W12: 11 | X12: =IF(U17="","",IF(U17="G",T17,T18)) -> Stephane
A13: 12 | B13: Noël | C13: 6 | E13: 2 | F13: =B11 -> KarineA | G13: =INDEX('Poules C - D'!$J$16:$M$16,MATCH(Tableau!E13,'Poules C - D'!$J$8:$M$8,0)) -> 2 | H13: =IF(G13="","",G13&RIGHT($F$11,1)) -> 2C | N13: 9 à 16 | Q13: 9 à 12 | T13: 9 / 10 | W13: 12 | X13: =IF(U17="","",IF(U17="P",T17,T18)) -> Eric
A14: 13 | B14: SebAZ | C14: 5 | E14: 3 | F14: =B16 -> Romain | G14: =INDEX('Poules C - D'!$J$16:$M$16,MATCH(Tableau!E14,'Poules C - D'!$J$8:$M$8,0)) -> 3 | H14: =IF(G14="","",G14&RIGHT($F$11,1)) -> 3C | J14: 1C | K14: =IF(ISNA(INDEX($F$2:$F$30,MATCH(J14,$H$2:$H$30,0))),"",INDEX($F$2:$F$30,MATCH(J14,$H$2:$H$30,0))) -> Matthieu | L14: G | M14: P | N14: =IF(L2="","",IF(L2="P",K2,K3)) -> Romain | O14: P | P14: G | Q14: =IF(O14="","",IF(O14="G",N14,N15)) -> Ariel | R14: G | S14: G | T14: =IF(R14="","",IF(R14="G",Q14,Q15)) -> Ariel | U14: G | W14: 13 | X14: =IF(U20="","",IF(U20="G",T20,T21)) -> Val
A15: 14 | B15: Stephane | C15: 5 | E15: 4 | F15: =B23 -> 0 | G15: =INDEX('Poules C - D'!$J$16:$M$16,MATCH(Tableau!E15,'Poules C - D'!$J$8:$M$8,0)) -> 4 | H15: =IF(G15="","",G15&RIGHT($F$11,1)) -> 4C | J15: 2e meill. 3e | K15: =B34 -> Eric | M15: P | N15: =IF(L5="","",IF(L5="P",K5,K6)) -> Ariel | P15: G | Q15: =IF(O17="","",IF(O17="G",N17,N18)) -> Stephane | S15: G | T15: =IF(R17="","",IF(R17="G",Q17,Q18)) -> SebAZ | W15: 14 | X15: =IF(U20="","",IF(U20="P",T20,T21)) -> Romain
A16: 15 | B16: Romain | C16: 5 | F16: Poule D | T16: 11 / 12 | W16: 15 | X16: =IF(U23="","",IF(U23="G",T23,T24)) -> Axel
A17: 16 | B17: Monique | C17: 5 | E17: 1 | F17: =B5 -> Sebden | G17: =INDEX('Poules C - D'!$J$33:$M$33,MATCH(Tableau!E17,'Poules C - D'!$J$25:$M$25,0)) -> 1 | H17: =IF(G17="","",G17&RIGHT($F$16,1)) -> 1D | J17: 2D | K17: =IF(ISNA(INDEX($F$2:$F$30,MATCH(J17,$H$2:$H$30,0))),"",INDEX($F$2:$F$30,MATCH(J17,$H$2:$H$30,0))) -> Monique | L17: P | M17: P | N17: =IF(L8="","",IF(L8="P",K8,K9)) -> Axel | O17: P | P17: G | Q17: =IF(O20="","",IF(O20="G",N20,N21)) -> Eric | R17: P | S17: P | T17: =IF(R14="","",IF(R14="P",Q14,Q15)) -> Stephane | U17: G | W17: 16 | X17: =IF(U23="","",IF(U23="P",T23,T24)) -> Monique
A18: 17 | B18: Axel | C18: 5 | E18: 2 | F18: =B10 -> Eric | G18: =INDEX('Poules C - D'!$J$33:$M$33,MATCH(Tableau!E18,'Poules C - D'!$J$25:$M$25,0)) -> 3 | H18: =IF(G18="","",G18&RIGHT($F$16,1)) -> 3D | J18: 1F | K18: =IF(ISNA(INDEX($F$2:$F$30,MATCH(J18,$H$2:$H$30,0))),"",INDEX($F$2:$F$30,MATCH(J18,$H$2:$H$30,0))) -> Flo | M18: P | N18: =IF(L11="","",IF(L11="P",K11,K12)) -> Stephane | P18: G | Q18: =IF(O23="","",IF(O23="G",N23,N24)) -> SebAZ | S18: P | T18: =IF(R17="","",IF(R17="P",Q17,Q18)) -> Eric | W18: 17 | X18: =IF(R27="","",IF(R27="G",Q27,Q28)) -> Benjamin
A19: 18 | B19: Benjamin | C19: 5 | E19: 3 | F19: =B17 -> Monique | G19: =INDEX('Poules C - D'!$J$33:$M$33,MATCH(Tableau!E19,'Poules C - D'!$J$25:$M$25,0)) -> 2 | H19: =IF(G19="","",G19&RIGHT($F$16,1)) -> 2D | Q19: 13 à 16 | T19: 13 / 14 | W19: 18 | X19: =IF(R27="","",IF(R27="P",Q27,Q28)) -> Jules
A20: 19 | B20: Jules | C20: 5 | E20: 4 | F20: =B22 -> 0 | G20: =INDEX('Poules C - D'!$J$33:$M$33,MATCH(Tableau!E20,'Poules C - D'!$J$25:$M$25,0)) -> 4 | H20: =IF(G20="","",G20&RIGHT($F$16,1)) -> 4D | J20: 2E | K20: =IF(ISNA(INDEX($F$2:$F$30,MATCH(J20,$H$2:$H$30,0))),"",INDEX($F$2:$F$30,MATCH(J20,$H$2:$H$30,0))) -> Val | L20: P | M20: P | N20: =IF(L14="","",IF(L14="P",K14,K15)) -> Eric | O20: g | P20: P | Q20: =IF(O14="","",IF(O14="P",N14,N15)) -> Romain | R20: G | S20: G | T20: =IF(R20="","",IF(R20="G",Q20,Q21)) -> Romain | U20: P | W20: 19 | X20: =IF(R30="","",IF(R30="G",Q30,Q31)) -> KarineLL
A21: 20 | B21: KarineLL | C21: 5 | F21: Poule E | J21: 2A | K21: =IF(ISNA(INDEX($F$2:$F$30,MATCH(J21,$H$2:$H$30,0))),"",INDEX($F$2:$F$30,MATCH(J21,$H$2:$H$30,0))) -> Noël | M21: P | N21: =IF(L17="","",IF(L17="P",K17,K18)) -> Monique | P21: P | Q21: =IF(O17="","",IF(O17="P",N17,N18)) -> Axel | S21: G | T21: =IF(R23="","",IF(R23="G",Q23,Q24)) -> Val | W21: 20
A22: 21 | E22: 1 | F22: =B6 -> Tom | G22: =INDEX('Poules E - F'!$J$16:$M$16,MATCH(Tableau!E22,'Poules E - F'!$J$8:$M$8,0)) -> 1 | H22: =IF(G22="","",G22&RIGHT($F$21,1)) -> 1E | T22: 15 / 16 | W22: 21 | X22: =IF(R33="","",IF(R33="G",Q33,Q34)) -> 
A23: 22 | E23: 2 | F23: =B9 -> Val | G23: =INDEX('Poules E - F'!$J$16:$M$16,MATCH(Tableau!E23,'Poules E - F'!$J$8:$M$8,0)) -> 2 | H23: =IF(G23="","",G23&RIGHT($F$21,1)) -> 2E | J23: 3e meill. 3e | K23: =B35 -> SebAZ | L23: P | M23: P | N23: =IF(L20="","",IF(L20="P",K20,K21)) -> Val | O23: P | P23: P | Q23: =IF(O20="","",IF(O20="P",N20,N21)) -> Monique | R23: P | S23: P | T23: =IF(R20="","",IF(R20="P",Q20,Q21)) -> Axel | U23: G | W23: 22 | X23: =IF(R33="","",IF(R33="P",Q33,Q34)) -> 
A24: 23 | E24: 3 | F24: =B18 -> Axel | G24: =INDEX('Poules E - F'!$J$16:$M$16,MATCH(Tableau!E24,'Poules E - F'!$J$8:$M$8,0)) -> 3 | H24: =IF(G24="","",G24&RIGHT($F$21,1)) -> 3E | J24: 1B | K24: =IF(ISNA(INDEX($F$2:$F$30,MATCH(J24,$H$2:$H$30,0))),"",INDEX($F$2:$F$30,MATCH(J24,$H$2:$H$30,0))) -> Zan | M24: P | N24: =IF(L23="","",IF(L23="P",K23,K24)) -> SebAZ | P24: P | Q24: =IF(O23="","",IF(O23="P",N23,N24)) -> Val | S24: P | T24: =IF(R23="","",IF(R23="P",Q23,Q24)) -> Monique | W24: 23 | X24: =IF(R36="","",IF(R36="G",Q36,Q37)) -> 
A25: 24 | E25: 4 | F25: =B21 -> KarineLL | G25: =INDEX('Poules E - F'!$J$16:$M$16,MATCH(Tableau!E25,'Poules E - F'!$J$8:$M$8,0)) -> 4 | H25: =IF(G25="","",G25&RIGHT($F$21,1)) -> 4E | W25: 24 | X25: =IF(R36="","",IF(R36="P",Q36,Q37)) -> 
A26: SERPENT | F26: Poule F | K26: CONSOLANTE 17 à 24 | N26: 17 à 20 | Q26: 17 / 18
A27: * | B27: Tête de série | E27: 1 | F27: =B7 -> Flo | G27: =INDEX('Poules E - F'!$J$33:$M$33,MATCH(Tableau!E27,'Poules E - F'!$J$25:$M$25,0)) -> 1 | H27: =IF(G27="","",G27&RIGHT($F$26,1)) -> 1F | J27: 4D | K27: =IF(ISNA(INDEX($F$2:$F$30,MATCH(J27,$H$2:$H$30,0))),"",INDEX($F$2:$F$30,MATCH(J27,$H$2:$H$30,0))) -> 0 | L27: P | M27: G | N27: Jules | O27: G | P27: G | Q27: Jules | R27: P
E28: 2 | F28: =B8 -> Maxime | G28: =INDEX('Poules E - F'!$J$33:$M$33,MATCH(Tableau!E28,'Poules E - F'!$J$25:$M$25,0)) -> 2 | H28: =IF(G28="","",G28&RIGHT($F$26,1)) -> 2F | J28: 5e meill. 3e | M28: G | N28: KarineLL | P28: G | Q28: Benjamin
E29: 3 | F29: =B19 -> Benjamin | G29: =INDEX('Poules E - F'!$J$33:$M$33,MATCH(Tableau!E29,'Poules E - F'!$J$25:$M$25,0)) -> 4 | H29: =IF(G29="","",G29&RIGHT($F$26,1)) -> 4F | Q29: 19 / 20
E30: 4 | F30: =B20 -> Jules | G30: =INDEX('Poules E - F'!$J$33:$M$33,MATCH(Tableau!E30,'Poules E - F'!$J$25:$M$25,0)) -> 3 | H30: =IF(G30="","",G30&RIGHT($F$26,1)) -> 3F | J30: 4F | K30: =IF(ISNA(INDEX($F$2:$F$30,MATCH(J30,$H$2:$H$30,0))),"",INDEX($F$2:$F$30,MATCH(J30,$H$2:$H$30,0))) -> Benjamin | L30: G | M30: G | N30: Benjamin | O30: G | P30: P | Q30: KarineLL | R30: G
D31: % gagnés | J31: 4A | K31: =IF(ISNA(INDEX($F$2:$F$30,MATCH(J31,$H$2:$H$30,0))),"",INDEX($F$2:$F$30,MATCH(J31,$H$2:$H$30,0))) -> 0 | M31: G | N31: KarineLL | P31: P | Q31: =IF(O30="","",IF(O30="P",N30,N31)) -> KarineLL
C32: Pts | D32: sets | E32: pts | F32: Classement | N32: 21 à 24 | Q32: 21 / 22
A33: 3B | B33: =VLOOKUP(INDEX('Poules A - B'!$J$25:$M$25,MATCH(3,'Poules A - B'!$J$33:$M$33,0)),'Poules A - B'!$A$20:$C$23,2,FALSE) -> Stephane | C33: =INDEX('Poules A - B'!$J$32:$M$32,MATCH(3,'Poules A - B'!$J$33:$M$33,0)) -> 0 | D33: =HLOOKUP(INDEX('Poules A - B'!$J$25:$M$25,MATCH(3,'Poules A - B'!$J$33:$M$33,0)),'Poules A - B'!$O$24:$V$33,10,FALSE) -> 0.3333333333 | E33: =HLOOKUP(INDEX('Poules A - B'!$J$25:$M$25,MATCH(3,'Poules A - B'!$J$33:$M$33,0)),'Poules A - B'!$X$24:$AE$33,10,FALSE) -> 0.44 | F33: 1 | J33: 4B | K33: =IF(ISNA(INDEX($F$2:$F$30,MATCH(J33,$H$2:$H$30,0))),"",INDEX($F$2:$F$30,MATCH(J33,$H$2:$H$30,0))) -> 0 | L33: P | M33: P | N33: =IF(L27="","",IF(L27="P",K27,K28)) -> 0 | P33: G | Q33: =IF(O33="","",IF(O33="G",N33,N34)) -> 
A34: 3D | B34: =VLOOKUP(INDEX('Poules C - D'!$J$25:$M$25,MATCH(3,'Poules C - D'!$J$33:$M$33,0)),'Poules C - D'!$A$20:$C$23,2,FALSE) -> Eric | C34: =INDEX('Poules C - D'!$J$32:$M$32,MATCH(3,'Poules C - D'!$J$33:$M$33,0)) -> 0 | D34: =HLOOKUP(INDEX('Poules C - D'!$J$25:$M$25,MATCH(3,'Poules C - D'!$J$33:$M$33,0)),'Poules C - D'!$O$24:$V$33,10,FALSE) -> 0.25 | E34: =HLOOKUP(INDEX('Poules C - D'!$J$25:$M$25,MATCH(3,'Poules C - D'!$J$33:$M$33,0)),'Poules C - D'!$X$24:$AE$33,10,FALSE) -> 0.4370860927 | F34: 2 | J34: 4E | K34: =IF(ISNA(INDEX($F$2:$F$30,MATCH(J34,$H$2:$H$30,0))),"",INDEX($F$2:$F$30,MATCH(J34,$H$2:$H$30,0))) -> KarineLL | M34: P | N34: =IF(L30="","",IF(L30="P",K30,K31)) -> 0 | P34: G | Q34: =IF(O36="","",IF(O36="G",N36,N37)) -> 
A35: 3A | B35: =VLOOKUP(INDEX('Poules A - B'!$J$8:$M$8,MATCH(3,'Poules A - B'!$J$16:$M$16,0)),'Poules A - B'!$A$3:$C$6,2,FALSE) -> SebAZ | C35: =INDEX('Poules A - B'!$J$15:$M$15,MATCH(3,'Poules A - B'!$J$16:$M$16,0)) -> 0 | D35: =HLOOKUP(INDEX('Poules A - B'!$J$8:$M$8,MATCH(3,'Poules A - B'!$J$16:$M$16,0)),'Poules A - B'!$O$7:$V$16,10,FALSE) -> 0.1428571429 | E35: =HLOOKUP(INDEX('Poules A - B'!$J$8:$M$8,MATCH(3,'Poules A - B'!$J$16:$M$16,0)),'Poules A - B'!$X$7:$AE$16,10,FALSE) -> 0.4074074074 | F35: 3 | Q35: 23 /24
A36: 3C | B36: =VLOOKUP(INDEX('Poules C - D'!$J$8:$M$8,MATCH(3,'Poules C - D'!$J$16:$M$16,0)),'Poules C - D'!$A$3:$C$6,2,FALSE) -> Romain | C36: =INDEX('Poules C - D'!$J$15:$M$15,MATCH(3,'Poules C - D'!$J$16:$M$16,0)) -> 0 | D36: =HLOOKUP(INDEX('Poules C - D'!$J$8:$M$8,MATCH(3,'Poules C - D'!$J$16:$M$16,0)),'Poules C - D'!$O$7:$V$16,10,FALSE) -> 0 | E36: =HLOOKUP(INDEX('Poules C - D'!$J$8:$M$8,MATCH(3,'Poules C - D'!$J$16:$M$16,0)),'Poules C - D'!$X$7:$AE$16,10,FALSE) -> 0.3660714286 | F36: 4 | J36: 6e meill. 3e | K36: =B38 -> Jules | L36: G | M36: P | N36: =IF(L33="","",IF(L33="P",K33,K34)) -> 0 | P36: P | Q36: =IF(O33="","",IF(O33="P",N33,N34)) -> 
A37: 3E | B37: =VLOOKUP(INDEX('Poules E - F'!$J$8:$M$8,MATCH(3,'Poules E - F'!$J$16:$M$16,0)),'Poules E - F'!$A$3:$C$6,2,FALSE) -> Axel | C37: =INDEX('Poules E - F'!$J$15:$M$15,MATCH(3,'Poules E - F'!$J$16:$M$16,0)) -> 0 | D37: =HLOOKUP(INDEX('Poules E - F'!$J$8:$M$8,MATCH(3,'Poules E - F'!$J$16:$M$16,0)),'Poules E - F'!$O$7:$V$16,10,FALSE) -> 0 | E37: =HLOOKUP(INDEX('Poules E - F'!$J$8:$M$8,MATCH(3,'Poules E - F'!$J$16:$M$16,0)),'Poules E - F'!$X$7:$AE$16,10,FALSE) -> 0.3125 | F37: 5 | J37: 4C | K37: =IF(ISNA(INDEX($F$2:$F$30,MATCH(J37,$H$2:$H$30,0))),"",INDEX($F$2:$F$30,MATCH(J37,$H$2:$H$30,0))) -> 0 | M37: P | N37: =IF(L36="","",IF(L36="P",K36,K37)) -> 0 | P37: P | Q37: =IF(O36="","",IF(O36="P",N36,N37)) -> 
A38: 3F | B38: =VLOOKUP(INDEX('Poules E - F'!$J$25:$M$25,MATCH(3,'Poules E - F'!$J$33:$M$33,0)),'Poules E - F'!$A$20:$C$23,2,FALSE) -> Jules | C38: =INDEX('Poules E - F'!$J$32:$M$32,MATCH(3,'Poules E - F'!$J$33:$M$33,0)) -> 0 | D38: =HLOOKUP(INDEX('Poules E - F'!$J$25:$M$25,MATCH(3,'Poules E - F'!$J$33:$M$33,0)),'Poules E - F'!$O$24:$V$33,10,FALSE) -> 0 | E38: =HLOOKUP(INDEX('Poules E - F'!$J$25:$M$25,MATCH(3,'Poules E - F'!$J$33:$M$33,0)),'Poules E - F'!$X$24:$AE$33,10,FALSE) -> 0.2826086957 | F38: 6

Sheet Poules A - B
A1: POULE | B1: A
B2: NOM Prénom | D2: Clt | H2: TABLE
A3: 1 | B3: =Tableau!F2 -> Lik | D3: 1
A4: 2 | B4: =Tableau!F3 -> Noël | D4: 2
A5: 3 | B5: =Tableau!F4 -> SebAZ | D5: 3
A6: 4 | B6: =Tableau!F5 -> 0 | D6: 4 | N6: Sets | W6: Pts
M7: 1 pour victoire - 0 pour défaite | O7: 1 | Q7: 2 | S7: 3 | U7: 4 | X7: 1 | Z7: 2 | AB7: 3 | AD7: 4
B8: Nom Prénom | C8: Nom Prénom | D8: Table | E8: Scores | J8: 1 | K8: 2 | L8: 3 | M8: 4 | O8: G | P8: P | Q8: G | R8: P | S8: G | T8: P | U8: G | V8: P | X8: G | Y8: P | Z8: G | AA8: P | AB8: G | AC8: P | AD8: G | AE8: P
A9: 1 contre 4 | B9: =B3 -> Lik | C9: =B6 -> 0 | J9: =IF(SUM($E9:$I9)=0,0,IF(COUNTIF($E9:$I9,">0")-COUNTIF($E9:$I9,"<0")>0,1,0)) -> 0 | M9: =IF(SUM($E9:$I9)=0,0,IF(COUNTIF($E9:$I9,">0")-COUNTIF($E9:$I9,"<0")<0,1,0)) -> 0 | O9: =COUNTIF($E9:$I9,">0") -> 0 | P9: =COUNTIF($E9:$I9,"<0") -> 0 | U9: =P9 -> 0 | V9: =O9 -> 0 | X9: =IF(ISBLANK($E9),0,IF($E9<0,-$E9,IF($E9>9,$E9+2,11)))+IF(ISBLANK($F9),0,IF($F9<0,-$F9,IF($F9>9,$F9+2,11)))+IF(ISBLANK($G9),0,IF($G9<0,-$G9,IF($G9>9,$G9+2,11)))+IF(ISBLANK($H9),0,IF($H9<0,-$H9,IF($H9>9,$H9+2,11)))+IF(ISBLANK($I9),0,IF($I9<0,-$I9,IF($I9>9,$I9+2,11))) -> 0 | Y9: =IF(ISBLANK($E9),0,IF($E9>0,$E9,IF($E9<-9,-$E9+2,11)))+IF(ISBLANK($F9),0,IF($F9>0,$F9,IF($F9<-9,-$F9+2,11)))+IF(ISBLANK($G9),0,IF($G9>0,$G9,IF($G9<-9,-$G9+2,11)))+IF(ISBLANK($H9),0,IF($H9>0,$H9,IF($H9<-9,-$H9+2,11)))+IF(ISBLANK($I9),0,IF($I9>0,$I9,IF($I9<-9,-$I9+2,11))) -> 0 | AD9: =Y9 -> 0 | AE9: =X9 -> 0
A10: 2 contre 3 | B10: =B4 -> Noël | C10: =B5 -> SebAZ | D10: 1 | E10: 11 | F10: 3 | G10: -10 | H10: 7 | K10: =IF(SUM($E10:$I10)=0,0,IF(COUNTIF($E10:$I10,">0")-COUNTIF($E10:$I10,"<0")>0,1,0)) -> 1 | L10: =IF(SUM($E10:$I10)=0,0,IF(COUNTIF($E10:$I10,">0")-COUNTIF($E10:$I10,"<0")<0,1,0)) -> 0 | Q10: =COUNTIF($E10:$I10,">0") -> 3 | R10: =COUNTIF($E10:$I10,"<0") -> 1 | S10: =+R10 -> 1 | T10: =+Q10 -> 3 | Z10: =IF(ISBLANK($E10),0,IF($E10<0,-$E10,IF($E10>9,$E10+2,11)))+IF(ISBLANK($F10),0,IF($F10<0,-$F10,IF($F10>9,$F10+2,11)))+IF(ISBLANK($G10),0,IF($G10<0,-$G10,IF($G10>9,$G10+2,11)))+IF(ISBLANK($H10),0,IF($H10<0,-$H10,IF($H10>9,$H10+2,11)))+IF(ISBLANK($I10),0,IF($I10<0,-$I10,IF($I10>9,$I10+2,11))) -> 45 | AA10: =IF(ISBLANK($E10),0,IF($E10>0,$E10,IF($E10<-9,-$E10+2,11)))+IF(ISBLANK($F10),0,IF($F10>0,$F10,IF($F10<-9,-$F10+2,11)))+IF(ISBLANK($G10),0,IF($G10>0,$G10,IF($G10<-9,-$G10+2,11)))+IF(ISBLANK($H10),0,IF($H10>0,$H10,IF($H10<-9,-$H10+2,11)))+IF(ISBLANK($I10),0,IF($I10>0,$I10,IF($I10<-9,-$I10+2,11))) -> 33 | AB10: =+AA10 -> 33 | AC10: =+Z10 -> 45
A11: 1 contre 3 | B11: =B3 -> Lik | C11: =B5 -> SebAZ | D11: 1 | E11: 7 | F11: 11 | G11: 4 | J11: =IF(SUM($E11:$I11)=0,0,IF(COUNTIF($E11:$I11,">0")-COUNTIF($E11:$I11,"<0")>0,1,0)) -> 1 | L11: =IF(SUM($E11:$I11)=0,0,IF(COUNTIF($E11:$I11,">0")-COUNTIF($E11:$I11,"<0")<0,1,0)) -> 0 | O11: =COUNTIF($E11:$I11,">0") -> 3 | P11: =COUNTIF($E11:$I11,"<0") -> 0 | S11: =+P11 -> 0 | T11: =+O11 -> 3 | X11: =IF(ISBLANK($E11),0,IF($E11<0,-$E11,IF($E11>9,$E11+2,11)))+IF(ISBLANK($F11),0,IF($F11<0,-$F11,IF($F11>9,$F11+2,11)))+IF(ISBLANK($G11),0,IF($G11<0,-$G11,IF($G11>9,$G11+2,11)))+IF(ISBLANK($H11),0,IF($H11<0,-$H11,IF($H11>9,$H11+2,11)))+IF(ISBLANK($I11),0,IF($I11<0,-$I11,IF($I11>9,$I11+2,11))) -> 35 | Y11: =IF(ISBLANK($E11),0,IF($E11>0,$E11,IF($E11<-9,-$E11+2,11)))+IF(ISBLANK($F11),0,IF($F11>0,$F11,IF($F11<-9,-$F11+2,11)))+IF(ISBLANK($G11),0,IF($G11>0,$G11,IF($G11<-9,-$G11+2,11)))+IF(ISBLANK($H11),0,IF($H11>0,$H11,IF($H11<-9,-$H11+2,11)))+IF(ISBLANK($I11),0,IF($I11>0,$I11,IF($I11<-9,-$I11+2,11))) -> 22 | AB11: =+Y11 -> 22 | AC11: =+X11 -> 35
A12: 2 contre 4 | B12: =B4 -> Noël | C12: =B6 -> 0 | K12: =IF(SUM($E12:$I12)=0,0,IF(COUNTIF($E12:$I12,">0")-COUNTIF($E12:$I12,"<0")>0,1,0)) -> 0 | M12: =IF(SUM($E12:$I12)=0,0,IF(COUNTIF($E12:$I12,">0")-COUNTIF($E12:$I12,"<0")<0,1,0)) -> 0 | Q12: =COUNTIF($E12:$I12,">0") -> 0 | R12: =COUNTIF($E12:$I12,"<0") -> 0 | U12: =+R12 -> 0 | V12: =+Q12 -> 0 | Z12: =IF(ISBLANK($E12),0,IF($E12<0,-$E12,IF($E12>9,$E12+2,11)))+IF(ISBLANK($F12),0,IF($F12<0,-$F12,IF($F12>9,$F12+2,11)))+IF(ISBLANK($G12),0,IF($G12<0,-$G12,IF($G12>9,$G12+2,11)))+IF(ISBLANK($H12),0,IF($H12<0,-$H12,IF($H12>9,$H12+2,11)))+IF(ISBLANK($I12),0,IF($I12<0,-$I12,IF($I12>9,$I12+2,11))) -> 0 | AA12: =IF(ISBLANK($E12),0,IF($E12>0,$E12,IF($E12<-9,-$E12+2,11)))+IF(ISBLANK($F12),0,IF($F12>0,$F12,IF($F12<-9,-$F12+2,11)))+IF(ISBLANK($G12),0,IF($G12>0,$G12,IF($G12<-9,-$G12+2,11)))+IF(ISBLANK($H12),0,IF($H12>0,$H12,IF($H12<-9,-$H12+2,11)))+IF(ISBLANK($I12),0,IF($I12>0,$I12,IF($I12<-9,-$I12+2,11))) -> 0 | AD12: =+AA12 -> 0 | AE12: =+Z12 -> 0
A13: 1 contre 2 | B13: =B3 -> Lik | C13: =B4 -> Noël | D13: 1 | E13: 7 | F13: 7 | G13: 6 | J13: =IF(SUM($E13:$I13)=0,0,IF(COUNTIF($E13:$I13,">0")-COUNTIF($E13:$I13,"<0")>0,1,0)) -> 1 | K13: =IF(SUM($E13:$I13)=0,0,IF(COUNTIF($E13:$I13,">0")-COUNTIF($E13:$I13,"<0")<0,1,0)) -> 0 | O13: =COUNTIF($E13:$I13,">0") -> 3 | P13: =COUNTIF($E13:$I13,"<0") -> 0 | Q13: =+P13 -> 0 | R13: =+O13 -> 3 | X13: =IF(ISBLANK($E13),0,IF($E13<0,-$E13,IF($E13>9,$E13+2,11)))+IF(ISBLANK($F13),0,IF($F13<0,-$F13,IF($F13>9,$F13+2,11)))+IF(ISBLANK($G13),0,IF($G13<0,-$G13,IF($G13>9,$G13+2,11)))+IF(ISBLANK($H13),0,IF($H13<0,-$H13,IF($H13>9,$H13+2,11)))+IF(ISBLANK($I13),0,IF($I13<0,-$I13,IF($I13>9,$I13+2,11))) -> 33 | Y13: =IF(ISBLANK($E13),0,IF($E13>0,$E13,IF($E13<-9,-$E13+2,11)))+IF(ISBLANK($F13),0,IF($F13>0,$F13,IF($F13<-9,-$F13+2,11)))+IF(ISBLANK($G13),0,IF($G13>0,$G13,IF($G13<-9,-$G13+2,11)))+IF(ISBLANK($H13),0,IF($H13>0,$H13,IF($H13<-9,-$H13+2,11)))+IF(ISBLANK($I13),0,IF($I13>0,$I13,IF($I13<-9,-$I13+2,11))) -> 20 | Z13: =+Y13 -> 20 | AA13: =+X13 -> 33
A14: 3 contre 4 | B14: =B5 -> SebAZ | C14: =B6 -> 0 | L14: =IF(SUM($E14:$I14)=0,0,IF(COUNTIF($E14:$I14,">0")-COUNTIF($E14:$I14,"<0")>0,1,0)) -> 0 | M14: =IF(SUM($E14:$I14)=0,0,IF(COUNTIF($E14:$I14,">0")-COUNTIF($E14:$I14,"<0")<0,1,0)) -> 0 | S14: =COUNTIF($E14:$I14,">0") -> 0 | T14: =COUNTIF($E14:$I14,"<0") -> 0 | U14: =+T14 -> 0 | V14: =+S14 -> 0 | AB14: =IF(ISBLANK($E14),0,IF($E14<0,-$E14,IF($E14>9,$E14+2,11)))+IF(ISBLANK($F14),0,IF($F14<0,-$F14,IF($F14>9,$F14+2,11)))+IF(ISBLANK($G14),0,IF($G14<0,-$G14,IF($G14>9,$G14+2,11)))+IF(ISBLANK($H14),0,IF($H14<0,-$H14,IF($H14>9,$H14+2,11)))+IF(ISBLANK($I14),0,IF($I14<0,-$I14,IF($I14>9,$I14+2,11))) -> 0 | AC14: =IF(ISBLANK($E14),0,IF($E14>0,$E14,IF($E14<-9,-$E14+2,11)))+IF(ISBLANK($F14),0,IF($F14>0,$F14,IF($F14<-9,-$F14+2,11)))+IF(ISBLANK($G14),0,IF($G14>0,$G14,IF($G14<-9,-$G14+2,11)))+IF(ISBLANK($H14),0,IF($H14>0,$H14,IF($H14<-9,-$H14+2,11)))+IF(ISBLANK($I14),0,IF($I14>0,$I14,IF($I14<-9,-$I14+2,11))) -> 0 | AD14: =+AC14 -> 0 | AE14: =+AB14 -> 0
I15: Total | J15: =SUM(J9:J14) -> 2 | K15: =SUM(K9:K14) -> 1 | L15: =SUM(L9:L14) -> 0 | M15: =SUM(M9:M14) -> 0 | O15: =SUM(O9:O14) -> 6 | P15: 0 | Q15: 3 | R15: 4 | S15: 1 | T15: 6 | U15: 0 | V15: 0 | X15: =SUM(X9:X14) -> 68 | Y15: 42 | Z15: 65 | AA15: 66 | AB15: 55 | AC15: 80 | AD15: 0 | AE15: 0
I16: Classement | J16: 1 | K16: 2 | L16: 3 | M16: 4 | O16: =IFERROR(O15/(O15+P15),0) -> 1 | Q16: =IFERROR(Q15/(Q15+R15),0) -> 0.4285714286 | S16: =IFERROR(S15/(S15+T15),0) -> 0.1428571429 | U16: =IFERROR(U15/(U15+V15),0) -> 0 | X16: =IFERROR(X15/(X15+Y15),0) -> 0.6181818182 | Z16: =IFERROR(Z15/(Z15+AA15),0) -> 0.4961832061 | AB16: =IFERROR(AB15/(AB15+AC15),0) -> 0.4074074074 | AD16: =IFERROR(AD15/(AD15+AE15),0) -> 0
A18: POULE | B18: B
B19: NOM Prénom | D19: Clt | H19: TABLE
A20: 1 | B20: =Tableau!F7 -> Zan | D20: 1
A21: 2 | B21: =Tableau!F8 -> Ariel | D21: 2
A22: 3 | B22: =Tableau!F9 -> Stephane | D22: 3
A23: 4 | B23: =Tableau!F10 -> 0 | D23: 4 | N23: Sets | W23: Pts
M24: 1 pour victoire - 0 pour défaite | O24: 1 | Q24: 2 | S24: 3 | U24: 4 | X24: 1 | Z24: 2 | AB24: 3 | AD24: 4
B25: Nom Prénom | C25: Nom Prénom | D25: Table | E25: Scores | J25: 1 | K25: 2 | L25: 3 | M25: 4 | O25: G | P25: P | Q25: G | R25: P | S25: G | T25: P | U25: G | V25: P | X25: G | Y25: P | Z25: G | AA25: P | AB25: G | AC25: P | AD25: G | AE25: P
A26: 1 contre 4 | B26: =B20 -> Zan | C26: =B23 -> 0 | J26: =IF(SUM($E26:$I26)=0,0,IF(COUNTIF($E26:$I26,">0")-COUNTIF($E26:$I26,"<0")>0,1,0)) -> 0 | M26: =IF(SUM($E26:$I26)=0,0,IF(COUNTIF($E26:$I26,">0")-COUNTIF($E26:$I26,"<0")<0,1,0)) -> 0 | O26: =COUNTIF($E26:$I26,">0") -> 0 | P26: =COUNTIF($E26:$I26,"<0") -> 0 | U26: =P26 -> 0 | V26: =O26 -> 0 | X26: =IF(ISBLANK($E26),0,IF($E26<0,-$E26,IF($E26>9,$E26+2,11)))+IF(ISBLANK($F26),0,IF($F26<0,-$F26,IF($F26>9,$F26+2,11)))+IF(ISBLANK($G26),0,IF($G26<0,-$G26,IF($G26>9,$G26+2,11)))+IF(ISBLANK($H26),0,IF($H26<0,-$H26,IF($H26>9,$H26+2,11)))+IF(ISBLANK($I26),0,IF($I26<0,-$I26,IF($I26>9,$I26+2,11))) -> 0 | Y26: =IF(ISBLANK($E26),0,IF($E26>0,$E26,IF($E26<-9,-$E26+2,11)))+IF(ISBLANK($F26),0,IF($F26>0,$F26,IF($F26<-9,-$F26+2,11)))+IF(ISBLANK($G26),0,IF($G26>0,$G26,IF($G26<-9,-$G26+2,11)))+IF(ISBLANK($H26),0,IF($H26>0,$H26,IF($H26<-9,-$H26+2,11)))+IF(ISBLANK($I26),0,IF($I26>0,$I26,IF($I26<-9,-$I26+2,11))) -> 0 | AD26: =Y26 -> 0 | AE26: =X26 -> 0
A27: 2 contre 3 | B27: =B21 -> Ariel | C27: =B22 -> Stephane | E27: 13 | F27: -9 | G27: 5 | H27: -11 | I27: 8 | K27: =IF(SUM($E27:$I27)=0,0,IF(COUNTIF($E27:$I27,">0")-COUNTIF($E27:$I27,"<0")>0,1,0)) -> 1 | L27: =IF(SUM($E27:$I27)=0,0,IF(COUNTIF($E27:$I27,">0")-COUNTIF($E27:$I27,"<0")<0,1,0)) -> 0 | Q27: =COUNTIF($E27:$I27,">0") -> 3 | R27: =COUNTIF($E27:$I27,"<0") -> 2 | S27: =+R27 -> 2 | T27: =+Q27 -> 3 | Z27: =IF(ISBLANK($E27),0,IF($E27<0,-$E27,IF($E27>9,$E27+2,11)))+IF(ISBLANK($F27),0,IF($F27<0,-$F27,IF($F27>9,$F27+2,11)))+IF(ISBLANK($G27),0,IF($G27<0,-$G27,IF($G27>9,$G27+2,11)))+IF(ISBLANK($H27),0,IF($H27<0,-$H27,IF($H27>9,$H27+2,11)))+IF(ISBLANK($I27),0,IF($I27<0,-$I27,IF($I27>9,$I27+2,11))) -> 57 | AA27: =IF(ISBLANK($E27),0,IF($E27>0,$E27,IF($E27<-9,-$E27+2,11)))+IF(ISBLANK($F27),0,IF($F27>0,$F27,IF($F27<-9,-$F27+2,11)))+IF(ISBLANK($G27),0,IF($G27>0,$G27,IF($G27<-9,-$G27+2,11)))+IF(ISBLANK($H27),0,IF($H27>0,$H27,IF($H27<-9,-$H27+2,11)))+IF(ISBLANK($I27),0,IF($I27>0,$I27,IF($I27<-9,-$I27+2,11))) -> 50 | AB27: =+AA27 -> 50 | AC27: =+Z27 -> 57
A28: 1 contre 3 | B28: =B20 -> Zan | C28: =B22 -> Stephane | E28: 8 | F28: 5 | G28: -8 | H28: 3 | J28: =IF(SUM($E28:$I28)=0,0,IF(COUNTIF($E28:$I28,">0")-COUNTIF($E28:$I28,"<0")>0,1,0)) -> 1 | L28: =IF(SUM($E28:$I28)=0,0,IF(COUNTIF($E28:$I28,">0")-COUNTIF($E28:$I28,"<0")<0,1,0)) -> 0 | O28: =COUNTIF($E28:$I28,">0") -> 3 | P28: =COUNTIF($E28:$I28,"<0") -> 1 | S28: =+P28 -> 1 | T28: =+O28 -> 3 | X28: =IF(ISBLANK($E28),0,IF($E28<0,-$E28,IF($E28>9,$E28+2,11)))+IF(ISBLANK($F28),0,IF($F28<0,-$F28,IF($F28>9,$F28+2,11)))+IF(ISBLANK($G28),0,IF($G28<0,-$G28,IF($G28>9,$G28+2,11)))+IF(ISBLANK($H28),0,IF($H28<0,-$H28,IF($H28>9,$H28+2,11)))+IF(ISBLANK($I28),0,IF($I28<0,-$I28,IF($I28>9,$I28+2,11))) -> 41 | Y28: =IF(ISBLANK($E28),0,IF($E28>0,$E28,IF($E28<-9,-$E28+2,11)))+IF(ISBLANK($F28),0,IF($F28>0,$F28,IF($F28<-9,-$F28+2,11)))+IF(ISBLANK($G28),0,IF($G28>0,$G28,IF($G28<-9,-$G28+2,11)))+IF(ISBLANK($H28),0,IF($H28>0,$H28,IF($H28<-9,-$H28+2,11)))+IF(ISBLANK($I28),0,IF($I28>0,$I28,IF($I28<-9,-$I28+2,11))) -> 27 | AB28: =+Y28 -> 27 | AC28: =+X28 -> 41
A29: 2 contre 4 | B29: =B21 -> Ariel | C29: =B23 -> 0 | K29: =IF(SUM($E29:$I29)=0,0,IF(COUNTIF($E29:$I29,">0")-COUNTIF($E29:$I29,"<0")>0,1,0)) -> 0 | M29: =IF(SUM($E29:$I29)=0,0,IF(COUNTIF($E29:$I29,">0")-COUNTIF($E29:$I29,"<0")<0,1,0)) -> 0 | Q29: =COUNTIF($E29:$I29,">0") -> 0 | R29: =COUNTIF($E29:$I29,"<0") -> 0 | U29: =+R29 -> 0 | V29: =+Q29 -> 0 | Z29: =IF(ISBLANK($E29),0,IF($E29<0,-$E29,IF($E29>9,$E29+2,11)))+IF(ISBLANK($F29),0,IF($F29<0,-$F29,IF($F29>9,$F29+2,11)))+IF(ISBLANK($G29),0,IF($G29<0,-$G29,IF($G29>9,$G29+2,11)))+IF(ISBLANK($H29),0,IF($H29<0,-$H29,IF($H29>9,$H29+2,11)))+IF(ISBLANK($I29),0,IF($I29<0,-$I29,IF($I29>9,$I29+2,11))) -> 0 | AA29: =IF(ISBLANK($E29),0,IF($E29>0,$E29,IF($E29<-9,-$E29+2,11)))+IF(ISBLANK($F29),0,IF($F29>0,$F29,IF($F29<-9,-$F29+2,11)))+IF(ISBLANK($G29),0,IF($G29>0,$G29,IF($G29<-9,-$G29+2,11)))+IF(ISBLANK($H29),0,IF($H29>0,$H29,IF($H29<-9,-$H29+2,11)))+IF(ISBLANK($I29),0,IF($I29>0,$I29,IF($I29<-9,-$I29+2,11))) -> 0 | AD29: =+AA29 -> 0 | AE29: =+Z29 -> 0
A30: 1 contre 2 | B30: =B20 -> Zan | C30: =B21 -> Ariel | E30: 4 | F30: 5 | G30: 3 | J30: =IF(SUM($E30:$I30)=0,0,IF(COUNTIF($E30:$I30,">0")-COUNTIF($E30:$I30,"<0")>0,1,0)) -> 1 | K30: =IF(SUM($E30:$I30)=0,0,IF(COUNTIF($E30:$I30,">0")-COUNTIF($E30:$I30,"<0")<0,1,0)) -> 0 | O30: =COUNTIF($E30:$I30,">0") -> 3 | P30: =COUNTIF($E30:$I30,"<0") -> 0 | Q30: =+P30 -> 0 | R30: =+O30 -> 3 | X30: =IF(ISBLANK($E30),0,IF($E30<0,-$E30,IF($E30>9,$E30+2,11)))+IF(ISBLANK($F30),0,IF($F30<0,-$F30,IF($F30>9,$F30+2,11)))+IF(ISBLANK($G30),0,IF($G30<0,-$G30,IF($G30>9,$G30+2,11)))+IF(ISBLANK($H30),0,IF($H30<0,-$H30,IF($H30>9,$H30+2,11)))+IF(ISBLANK($I30),0,IF($I30<0,-$I30,IF($I30>9,$I30+2,11))) -> 33 | Y30: =IF(ISBLANK($E30),0,IF($E30>0,$E30,IF($E30<-9,-$E30+2,11)))+IF(ISBLANK($F30),0,IF($F30>0,$F30,IF($F30<-9,-$F30+2,11)))+IF(ISBLANK($G30),0,IF($G30>0,$G30,IF($G30<-9,-$G30+2,11)))+IF(ISBLANK($H30),0,IF($H30>0,$H30,IF($H30<-9,-$H30+2,11)))+IF(ISBLANK($I30),0,IF($I30>0,$I30,IF($I30<-9,-$I30+2,11))) -> 12 | Z30: =+Y30 -> 12 | AA30: =+X30 -> 33
A31: 3 contre 4 | B31: =B22 -> Stephane | C31: =B23 -> 0 | L31: =IF(SUM($E31:$I31)=0,0,IF(COUNTIF($E31:$I31,">0")-COUNTIF($E31:$I31,"<0")>0,1,0)) -> 0 | M31: =IF(SUM($E31:$I31)=0,0,IF(COUNTIF($E31:$I31,">0")-COUNTIF($E31:$I31,"<0")<0,1,0)) -> 0 | S31: =COUNTIF($E31:$I31,">0") -> 0 | T31: =COUNTIF($E31:$I31,"<0") -> 0 | U31: =+T31 -> 0 | V31: =+S31 -> 0 | AB31: =IF(ISBLANK($E31),0,IF($E31<0,-$E31,IF($E31>9,$E31+2,11)))+IF(ISBLANK($F31),0,IF($F31<0,-$F31,IF($F31>9,$F31+2,11)))+IF(ISBLANK($G31),0,IF($G31<0,-$G31,IF($G31>9,$G31+2,11)))+IF(ISBLANK($H31),0,IF($H31<0,-$H31,IF($H31>9,$H31+2,11)))+IF(ISBLANK($I31),0,IF($I31<0,-$I31,IF($I31>9,$I31+2,11))) -> 0 | AC31: =IF(ISBLANK($E31),0,IF($E31>0,$E31,IF($E31<-9,-$E31+2,11)))+IF(ISBLANK($F31),0,IF($F31>0,$F31,IF($F31<-9,-$F31+2,11)))+IF(ISBLANK($G31),0,IF($G31>0,$G31,IF($G31<-9,-$G31+2,11)))+IF(ISBLANK($H31),0,IF($H31>0,$H31,IF($H31<-9,-$H31+2,11)))+IF(ISBLANK($I31),0,IF($I31>0,$I31,IF($I31<-9,-$I31+2,11))) -> 0 | AD31: =+AC31 -> 0 | AE31: =+AB31 -> 0
I32: Total | J32: =SUM(J26:J31) -> 2 | K32: =SUM(K26:K31) -> 1 | L32: =SUM(L26:L31) -> 0 | M32: =SUM(M26:M31) -> 0 | O32: =SUM(O26:O31) -> 6 | P32: 1 | Q32: 3 | R32: 5 | S32: 3 | T32: 6 | U32: 0 | V32: 0 | X32: =SUM(X26:X31) -> 74 | Y32: 39 | Z32: 69 | AA32: 83 | AB32: 77 | AC32: 98 | AD32: 0 | AE32: 0
I33: Classement | J33: 1 | K33: 2 | L33: 3 | M33: 4 | O33: =IFERROR(O32/(O32+P32),0) -> 0.8571428571 | Q33: =IFERROR(Q32/(Q32+R32),0) -> 0.375 | S33: =IFERROR(S32/(S32+T32),0) -> 0.3333333333 | U33: =IFERROR(U32/(U32+V32),0) -> 0 | X33: =IFERROR(X32/(X32+Y32),0) -> 0.6548672566 | Z33: =IFERROR(Z32/(Z32+AA32),0) -> 0.4539473684 | AB33: =IFERROR(AB32/(AB32+AC32),0) -> 0.44 | AD33: =IFERROR(AD32/(AD32+AE32),0) -> 0

Sheet Poules C - D
A1: POULE | B1: C
B2: NOM Prénom | D2: Clt | H2: TABLE
A3: 1 | B3: =Tableau!F12 -> Matthieu | D3: 1
A4: 2 | B4: =Tableau!F13 -> KarineA | D4: 2
A5: 3 | B5: =Tableau!F14 -> Romain | D5: 3
A6: 4 | B6: =Tableau!F15 -> 0 | D6: 4 | N6: Sets | W6: Pts
M7: 1 pour victoire - 0 pour défaite | O7: 1 | Q7: 2 | S7: 3 | U7: 4 | X7: 1 | Z7: 2 | AB7: 3 | AD7: 4
B8: Nom Prénom | C8: Nom Prénom | D8: Table | E8: Scores | J8: 1 | K8: 2 | L8: 3 | M8: 4 | O8: G | P8: P | Q8: G | R8: P | S8: G | T8: P | U8: G | V8: P | X8: G | Y8: P | Z8: G | AA8: P | AB8: G | AC8: P | AD8: G | AE8: P
A9: 1 contre 4 | B9: =B3 -> Matthieu | C9: =B6 -> 0 | J9: =IF(SUM($E9:$I9)=0,0,IF(COUNTIF($E9:$I9,">0")-COUNTIF($E9:$I9,"<0")>0,1,0)) -> 0 | M9: =IF(SUM($E9:$I9)=0,0,IF(COUNTIF($E9:$I9,">0")-COUNTIF($E9:$I9,"<0")<0,1,0)) -> 0 | O9: =COUNTIF($E9:$I9,">0") -> 0 | P9: =COUNTIF($E9:$I9,"<0") -> 0 | U9: =P9 -> 0 | V9: =O9 -> 0 | X9: =IF(ISBLANK($E9),0,IF($E9<0,-$E9,IF($E9>9,$E9+2,11)))+IF(ISBLANK($F9),0,IF($F9<0,-$F9,IF($F9>9,$F9+2,11)))+IF(ISBLANK($G9),0,IF($G9<0,-$G9,IF($G9>9,$G9+2,11)))+IF(ISBLANK($H9),0,IF($H9<0,-$H9,IF($H9>9,$H9+2,11)))+IF(ISBLANK($I9),0,IF($I9<0,-$I9,IF($I9>9,$I9+2,11))) -> 0 | Y9: =IF(ISBLANK($E9),0,IF($E9>0,$E9,IF($E9<-9,-$E9+2,11)))+IF(ISBLANK($F9),0,IF($F9>0,$F9,IF($F9<-9,-$F9+2,11)))+IF(ISBLANK($G9),0,IF($G9>0,$G9,IF($G9<-9,-$G9+2,11)))+IF(ISBLANK($H9),0,IF($H9>0,$H9,IF($H9<-9,-$H9+2,11)))+IF(ISBLANK($I9),0,IF($I9>0,$I9,IF($I9<-9,-$I9+2,11))) -> 0 | AD9: =Y9 -> 0 | AE9: =X9 -> 0
A10: 2 contre 3 | B10: =B4 -> KarineA | C10: =B5 -> Romain | E10: 4 | F10: 5 | G10: 14 | K10: =IF(SUM($E10:$I10)=0,0,IF(COUNTIF($E10:$I10,">0")-COUNTIF($E10:$I10,"<0")>0,1,0)) -> 1 | L10: =IF(SUM($E10:$I10)=0,0,IF(COUNTIF($E10:$I10,">0")-COUNTIF($E10:$I10,"<0")<0,1,0)) -> 0 | Q10: =COUNTIF($E10:$I10,">0") -> 3 | R10: =COUNTIF($E10:$I10,"<0") -> 0 | S10: =+R10 -> 0 | T10: =+Q10 -> 3 | Z10: =IF(ISBLANK($E10),0,IF($E10<0,-$E10,IF($E10>9,$E10+2,11)))+IF(ISBLANK($F10),0,IF($F10<0,-$F10,IF($F10>9,$F10+2,11)))+IF(ISBLANK($G10),0,IF($G10<0,-$G10,IF($G10>9,$G10+2,11)))+IF(ISBLANK($H10),0,IF($H10<0,-$H10,IF($H10>9,$H10+2,11)))+IF(ISBLANK($I10),0,IF($I10<0,-$I10,IF($I10>9,$I10+2,11))) -> 38 | AA10: =IF(ISBLANK($E10),0,IF($E10>0,$E10,IF($E10<-9,-$E10+2,11)))+IF(ISBLANK($F10),0,IF($F10>0,$F10,IF($F10<-9,-$F10+2,11)))+IF(ISBLANK($G10),0,IF($G10>0,$G10,IF($G10<-9,-$G10+2,11)))+IF(ISBLANK($H10),0,IF($H10>0,$H10,IF($H10<-9,-$H10+2,11)))+IF(ISBLANK($I10),0,IF($I10>0,$I10,IF($I10<-9,-$I10+2,11))) -> 23 | AB10: =+AA10 -> 23 | AC10: =+Z10 -> 38
A11: 1 contre 3 | B11: =B3 -> Matthieu | C11: =B5 -> Romain | E11: 8 | F11: 4 | G11: 6 | J11: =IF(SUM($E11:$I11)=0,0,IF(COUNTIF($E11:$I11,">0")-COUNTIF($E11:$I11,"<0")>0,1,0)) -> 1 | L11: =IF(SUM($E11:$I11)=0,0,IF(COUNTIF($E11:$I11,">0")-COUNTIF($E11:$I11,"<0")<0,1,0)) -> 0 | O11: =COUNTIF($E11:$I11,">0") -> 3 | P11: =COUNTIF($E11:$I11,"<0") -> 0 | S11: =+P11 -> 0 | T11: =+O11 -> 3 | X11: =IF(ISBLANK($E11),0,IF($E11<0,-$E11,IF($E11>9,$E11+2,11)))+IF(ISBLANK($F11),0,IF($F11<0,-$F11,IF($F11>9,$F11+2,11)))+IF(ISBLANK($G11),0,IF($G11<0,-$G11,IF($G11>9,$G11+2,11)))+IF(ISBLANK($H11),0,IF($H11<0,-$H11,IF($H11>9,$H11+2,11)))+IF(ISBLANK($I11),0,IF($I11<0,-$I11,IF($I11>9,$I11+2,11))) -> 33 | Y11: =IF(ISBLANK($E11),0,IF($E11>0,$E11,IF($E11<-9,-$E11+2,11)))+IF(ISBLANK($F11),0,IF($F11>0,$F11,IF($F11<-9,-$F11+2,11)))+IF(ISBLANK($G11),0,IF($G11>0,$G11,IF($G11<-9,-$G11+2,11)))+IF(ISBLANK($H11),0,IF($H11>0,$H11,IF($H11<-9,-$H11+2,11)))+IF(ISBLANK($I11),0,IF($I11>0,$I11,IF($I11<-9,-$I11+2,11))) -> 18 | AB11: =+Y11 -> 18 | AC11: =+X11 -> 33
A12: 2 contre 4 | B12: =B4 -> KarineA | C12: =B6 -> 0 | K12: =IF(SUM($E12:$I12)=0,0,IF(COUNTIF($E12:$I12,">0")-COUNTIF($E12:$I12,"<0")>0,1,0)) -> 0 | M12: =IF(SUM($E12:$I12)=0,0,IF(COUNTIF($E12:$I12,">0")-COUNTIF($E12:$I12,"<0")<0,1,0)) -> 0 | Q12: =COUNTIF($E12:$I12,">0") -> 0 | R12: =COUNTIF($E12:$I12,"<0") -> 0 | U12: =+R12 -> 0 | V12: =+Q12 -> 0 | Z12: =IF(ISBLANK($E12),0,IF($E12<0,-$E12,IF($E12>9,$E12+2,11)))+IF(ISBLANK($F12),0,IF($F12<0,-$F12,IF($F12>9,$F12+2,11)))+IF(ISBLANK($G12),0,IF($G12<0,-$G12,IF($G12>9,$G12+2,11)))+IF(ISBLANK($H12),0,IF($H12<0,-$H12,IF($H12>9,$H12+2,11)))+IF(ISBLANK($I12),0,IF($I12<0,-$I12,IF($I12>9,$I12+2,11))) -> 0 | AA12: =IF(ISBLANK($E12),0,IF($E12>0,$E12,IF($E12<-9,-$E12+2,11)))+IF(ISBLANK($F12),0,IF($F12>0,$F12,IF($F12<-9,-$F12+2,11)))+IF(ISBLANK($G12),0,IF($G12>0,$G12,IF($G12<-9,-$G12+2,11)))+IF(ISBLANK($H12),0,IF($H12>0,$H12,IF($H12<-9,-$H12+2,11)))+IF(ISBLANK($I12),0,IF($I12>0,$I12,IF($I12<-9,-$I12+2,11))) -> 0 | AD12: =+AA12 -> 0 | AE12: =+Z12 -> 0
A13: 1 contre 2 | B13: =B3 -> Matthieu | C13: =B4 -> KarineA | E13: 6 | F13: 8 | G13: 5 | J13: =IF(SUM($E13:$I13)=0,0,IF(COUNTIF($E13:$I13,">0")-COUNTIF($E13:$I13,"<0")>0,1,0)) -> 1 | K13: =IF(SUM($E13:$I13)=0,0,IF(COUNTIF($E13:$I13,">0")-COUNTIF($E13:$I13,"<0")<0,1,0)) -> 0 | O13: =COUNTIF($E13:$I13,">0") -> 3 | P13: =COUNTIF($E13:$I13,"<0") -> 0 | Q13: =+P13 -> 0 | R13: =+O13 -> 3 | X13: =IF(ISBLANK($E13),0,IF($E13<0,-$E13,IF($E13>9,$E13+2,11)))+IF(ISBLANK($F13),0,IF($F13<0,-$F13,IF($F13>9,$F13+2,11)))+IF(ISBLANK($G13),0,IF($G13<0,-$G13,IF($G13>9,$G13+2,11)))+IF(ISBLANK($H13),0,IF($H13<0,-$H13,IF($H13>9,$H13+2,11)))+IF(ISBLANK($I13),0,IF($I13<0,-$I13,IF($I13>9,$I13+2,11))) -> 33 | Y13: =IF(ISBLANK($E13),0,IF($E13>0,$E13,IF($E13<-9,-$E13+2,11)))+IF(ISBLANK($F13),0,IF($F13>0,$F13,IF($F13<-9,-$F13+2,11)))+IF(ISBLANK($G13),0,IF($G13>0,$G13,IF($G13<-9,-$G13+2,11)))+IF(ISBLANK($H13),0,IF($H13>0,$H13,IF($H13<-9,-$H13+2,11)))+IF(ISBLANK($I13),0,IF($I13>0,$I13,IF($I13<-9,-$I13+2,11))) -> 19 | Z13: =+Y13 -> 19 | AA13: =+X13 -> 33
A14: 3 contre 4 | B14: =B5 -> Romain | C14: =B6 -> 0 | L14: =IF(SUM($E14:$I14)=0,0,IF(COUNTIF($E14:$I14,">0")-COUNTIF($E14:$I14,"<0")>0,1,0)) -> 0 | M14: =IF(SUM($E14:$I14)=0,0,IF(COUNTIF($E14:$I14,">0")-COUNTIF($E14:$I14,"<0")<0,1,0)) -> 0 | S14: =COUNTIF($E14:$I14,">0") -> 0 | T14: =COUNTIF($E14:$I14,"<0") -> 0 | U14: =+T14 -> 0 | V14: =+S14 -> 0 | AB14: =IF(ISBLANK($E14),0,IF($E14<0,-$E14,IF($E14>9,$E14+2,11)))+IF(ISBLANK($F14),0,IF($F14<0,-$F14,IF($F14>9,$F14+2,11)))+IF(ISBLANK($G14),0,IF($G14<0,-$G14,IF($G14>9,$G14+2,11)))+IF(ISBLANK($H14),0,IF($H14<0,-$H14,IF($H14>9,$H14+2,11)))+IF(ISBLANK($I14),0,IF($I14<0,-$I14,IF($I14>9,$I14+2,11))) -> 0 | AC14: =IF(ISBLANK($E14),0,IF($E14>0,$E14,IF($E14<-9,-$E14+2,11)))+IF(ISBLANK($F14),0,IF($F14>0,$F14,IF($F14<-9,-$F14+2,11)))+IF(ISBLANK($G14),0,IF($G14>0,$G14,IF($G14<-9,-$G14+2,11)))+IF(ISBLANK($H14),0,IF($H14>0,$H14,IF($H14<-9,-$H14+2,11)))+IF(ISBLANK($I14),0,IF($I14>0,$I14,IF($I14<-9,-$I14+2,11))) -> 0 | AD14: =+AC14 -> 0 | AE14: =+AB14 -> 0
I15: Total | J15: =SUM(J9:J14) -> 2 | K15: =SUM(K9:K14) -> 1 | L15: =SUM(L9:L14) -> 0 | M15: =SUM(M9:M14) -> 0 | O15: =SUM(O9:O14) -> 6 | P15: 0 | Q15: 3 | R15: 3 | S15: 0 | T15: 6 | U15: 0 | V15: 0 | X15: =SUM(X9:X14) -> 66 | Y15: 37 | Z15: 57 | AA15: 56 | AB15: 41 | AC15: 71 | AD15: 0 | AE15: 0
I16: Classement | J16: 1 | K16: 2 | L16: 3 | M16: 4 | O16: =IFERROR(O15/(O15+P15),0) -> 1 | Q16: =IFERROR(Q15/(Q15+R15),0) -> 0.5 | S16: =IFERROR(S15/(S15+T15),0) -> 0 | U16: =IFERROR(U15/(U15+V15),0) -> 0 | X16: =IFERROR(X15/(X15+Y15),0) -> 0.640776699 | Z16: =IFERROR(Z15/(Z15+AA15),0) -> 0.5044247788 | AB16: =IFERROR(AB15/(AB15+AC15),0) -> 0.3660714286 | AD16: =IFERROR(AD15/(AD15+AE15),0) -> 0
A18: POULE | B18: D
B19: NOM Prénom | D19: Clt | H19: TABLE
A20: 1 | B20: =Tableau!F17 -> Sebden | D20: 1
A21: 2 | B21: =Tableau!F18 -> Eric | D21: 2
A22: 3 | B22: =Tableau!F19 -> Monique | D22: 3
A23: 4 | B23: =Tableau!F20 -> 0 | D23: 4 | N23: Sets | W23: Pts
M24: 1 pour victoire - 0 pour défaite | O24: 1 | Q24: 2 | S24: 3 | U24: 4 | X24: 1 | Z24: 2 | AB24: 3 | AD24: 4
B25: Nom Prénom | C25: Nom Prénom | D25: Table | E25: Scores | J25: 1 | K25: 2 | L25: 3 | M25: 4 | O25: G | P25: P | Q25: G | R25: P | S25: G | T25: P | U25: G | V25: P | X25: G | Y25: P | Z25: G | AA25: P | AB25: G | AC25: P | AD25: G | AE25: P
A26: 1 contre 4 | B26: =B20 -> Sebden | C26: =B23 -> 0 | J26: =IF(SUM($E26:$I26)=0,0,IF(COUNTIF($E26:$I26,">0")-COUNTIF($E26:$I26,"<0")>0,1,0)) -> 0 | M26: =IF(SUM($E26:$I26)=0,0,IF(COUNTIF($E26:$I26,">0")-COUNTIF($E26:$I26,"<0")<0,1,0)) -> 0 | O26: =COUNTIF($E26:$I26,">0") -> 0 | P26: =COUNTIF($E26:$I26,"<0") -> 0 | U26: =P26 -> 0 | V26: =O26 -> 0 | X26: =IF(ISBLANK($E26),0,IF($E26<0,-$E26,IF($E26>9,$E26+2,11)))+IF(ISBLANK($F26),0,IF($F26<0,-$F26,IF($F26>9,$F26+2,11)))+IF(ISBLANK($G26),0,IF($G26<0,-$G26,IF($G26>9,$G26+2,11)))+IF(ISBLANK($H26),0,IF($H26<0,-$H26,IF($H26>9,$H26+2,11)))+IF(ISBLANK($I26),0,IF($I26<0,-$I26,IF($I26>9,$I26+2,11))) -> 0 | Y26: =IF(ISBLANK($E26),0,IF($E26>0,$E26,IF($E26<-9,-$E26+2,11)))+IF(ISBLANK($F26),0,IF($F26>0,$F26,IF($F26<-9,-$F26+2,11)))+IF(ISBLANK($G26),0,IF($G26>0,$G26,IF($G26<-9,-$G26+2,11)))+IF(ISBLANK($H26),0,IF($H26>0,$H26,IF($H26<-9,-$H26+2,11)))+IF(ISBLANK($I26),0,IF($I26>0,$I26,IF($I26<-9,-$I26+2,11))) -> 0 | AD26: =Y26 -> 0 | AE26: =X26 -> 0
A27: 2 contre 3 | B27: =B21 -> Eric | C27: =B22 -> Monique | D27: 4 | E27: 9 | F27: -9 | G27: -7 | H27: 9 | I27: -10 | K27: =IF(SUM($E27:$I27)=0,0,IF(COUNTIF($E27:$I27,">0")-COUNTIF($E27:$I27,"<0")>0,1,0)) -> 0 | L27: =IF(SUM($E27:$I27)=0,0,IF(COUNTIF($E27:$I27,">0")-COUNTIF($E27:$I27,"<0")<0,1,0)) -> 1 | Q27: =COUNTIF($E27:$I27,">0") -> 2 | R27: =COUNTIF($E27:$I27,"<0") -> 3 | S27: =+R27 -> 3 | T27: =+Q27 -> 2 | Z27: =IF(ISBLANK($E27),0,IF($E27<0,-$E27,IF($E27>9,$E27+2,11)))+IF(ISBLANK($F27),0,IF($F27<0,-$F27,IF($F27>9,$F27+2,11)))+IF(ISBLANK($G27),0,IF($G27<0,-$G27,IF($G27>9,$G27+2,11)))+IF(ISBLANK($H27),0,IF($H27<0,-$H27,IF($H27>9,$H27+2,11)))+IF(ISBLANK($I27),0,IF($I27<0,-$I27,IF($I27>9,$I27+2,11))) -> 48 | AA27: =IF(ISBLANK($E27),0,IF($E27>0,$E27,IF($E27<-9,-$E27+2,11)))+IF(ISBLANK($F27),0,IF($F27>0,$F27,IF($F27<-9,-$F27+2,11)))+IF(ISBLANK($G27),0,IF($G27>0,$G27,IF($G27<-9,-$G27+2,11)))+IF(ISBLANK($H27),0,IF($H27>0,$H27,IF($H27<-9,-$H27+2,11)))+IF(ISBLANK($I27),0,IF($I27>0,$I27,IF($I27<-9,-$I27+2,11))) -> 52 | AB27: =+AA27 -> 52 | AC27: =+Z27 -> 48
A28: 1 contre 3 | B28: =B20 -> Sebden | C28: =B22 -> Monique | D28: 4 | E28: 1 | F28: 5 | G28: 2 | J28: =IF(SUM($E28:$I28)=0,0,IF(COUNTIF($E28:$I28,">0")-COUNTIF($E28:$I28,"<0")>0,1,0)) -> 1 | L28: =IF(SUM($E28:$I28)=0,0,IF(COUNTIF($E28:$I28,">0")-COUNTIF($E28:$I28,"<0")<0,1,0)) -> 0 | O28: =COUNTIF($E28:$I28,">0") -> 3 | P28: =COUNTIF($E28:$I28,"<0") -> 0 | S28: =+P28 -> 0 | T28: =+O28 -> 3 | X28: =IF(ISBLANK($E28),0,IF($E28<0,-$E28,IF($E28>9,$E28+2,11)))+IF(ISBLANK($F28),0,IF($F28<0,-$F28,IF($F28>9,$F28+2,11)))+IF(ISBLANK($G28),0,IF($G28<0,-$G28,IF($G28>9,$G28+2,11)))+IF(ISBLANK($H28),0,IF($H28<0,-$H28,IF($H28>9,$H28+2,11)))+IF(ISBLANK($I28),0,IF($I28<0,-$I28,IF($I28>9,$I28+2,11))) -> 33 | Y28: =IF(ISBLANK($E28),0,IF($E28>0,$E28,IF($E28<-9,-$E28+2,11)))+IF(ISBLANK($F28),0,IF($F28>0,$F28,IF($F28<-9,-$F28+2,11)))+IF(ISBLANK($G28),0,IF($G28>0,$G28,IF($G28<-9,-$G28+2,11)))+IF(ISBLANK($H28),0,IF($H28>0,$H28,IF($H28<-9,-$H28+2,11)))+IF(ISBLANK($I28),0,IF($I28>0,$I28,IF($I28<-9,-$I28+2,11))) -> 8 | AB28: =+Y28 -> 8 | AC28: =+X28 -> 33
A29: 2 contre 4 | B29: =B21 -> Eric | C29: =B23 -> 0 | K29: =IF(SUM($E29:$I29)=0,0,IF(COUNTIF($E29:$I29,">0")-COUNTIF($E29:$I29,"<0")>0,1,0)) -> 0 | M29: =IF(SUM($E29:$I29)=0,0,IF(COUNTIF($E29:$I29,">0")-COUNTIF($E29:$I29,"<0")<0,1,0)) -> 0 | Q29: =COUNTIF($E29:$I29,">0") -> 0 | R29: =COUNTIF($E29:$I29,"<0") -> 0 | U29: =+R29 -> 0 | V29: =+Q29 -> 0 | Z29: =IF(ISBLANK($E29),0,IF($E29<0,-$E29,IF($E29>9,$E29+2,11)))+IF(ISBLANK($F29),0,IF($F29<0,-$F29,IF($F29>9,$F29+2,11)))+IF(ISBLANK($G29),0,IF($G29<0,-$G29,IF($G29>9,$G29+2,11)))+IF(ISBLANK($H29),0,IF($H29<0,-$H29,IF($H29>9,$H29+2,11)))+IF(ISBLANK($I29),0,IF($I29<0,-$I29,IF($I29>9,$I29+2,11))) -> 0 | AA29: =IF(ISBLANK($E29),0,IF($E29>0,$E29,IF($E29<-9,-$E29+2,11)))+IF(ISBLANK($F29),0,IF($F29>0,$F29,IF($F29<-9,-$F29+2,11)))+IF(ISBLANK($G29),0,IF($G29>0,$G29,IF($G29<-9,-$G29+2,11)))+IF(ISBLANK($H29),0,IF($H29>0,$H29,IF($H29<-9,-$H29+2,11)))+IF(ISBLANK($I29),0,IF($I29>0,$I29,IF($I29<-9,-$I29+2,11))) -> 0 | AD29: =+AA29 -> 0 | AE29: =+Z29 -> 0
A30: 1 contre 2 | B30: =B20 -> Sebden | C30: =B21 -> Eric | D30: 4 | E30: 7 | F30: 6 | G30: 5 | J30: =IF(SUM($E30:$I30)=0,0,IF(COUNTIF($E30:$I30,">0")-COUNTIF($E30:$I30,"<0")>0,1,0)) -> 1 | K30: =IF(SUM($E30:$I30)=0,0,IF(COUNTIF($E30:$I30,">0")-COUNTIF($E30:$I30,"<0")<0,1,0)) -> 0 | O30: =COUNTIF($E30:$I30,">0") -> 3 | P30: =COUNTIF($E30:$I30,"<0") -> 0 | Q30: =+P30 -> 0 | R30: =+O30 -> 3 | X30: =IF(ISBLANK($E30),0,IF($E30<0,-$E30,IF($E30>9,$E30+2,11)))+IF(ISBLANK($F30),0,IF($F30<0,-$F30,IF($F30>9,$F30+2,11)))+IF(ISBLANK($G30),0,IF($G30<0,-$G30,IF($G30>9,$G30+2,11)))+IF(ISBLANK($H30),0,IF($H30<0,-$H30,IF($H30>9,$H30+2,11)))+IF(ISBLANK($I30),0,IF($I30<0,-$I30,IF($I30>9,$I30+2,11))) -> 33 | Y30: =IF(ISBLANK($E30),0,IF($E30>0,$E30,IF($E30<-9,-$E30+2,11)))+IF(ISBLANK($F30),0,IF($F30>0,$F30,IF($F30<-9,-$F30+2,11)))+IF(ISBLANK($G30),0,IF($G30>0,$G30,IF($G30<-9,-$G30+2,11)))+IF(ISBLANK($H30),0,IF($H30>0,$H30,IF($H30<-9,-$H30+2,11)))+IF(ISBLANK($I30),0,IF($I30>0,$I30,IF($I30<-9,-$I30+2,11))) -> 18 | Z30: =+Y30 -> 18 | AA30: =+X30 -> 33
A31: 3 contre 4 | B31: =B22 -> Monique | C31: =B23 -> 0 | L31: =IF(SUM($E31:$I31)=0,0,IF(COUNTIF($E31:$I31,">0")-COUNTIF($E31:$I31,"<0")>0,1,0)) -> 0 | M31: =IF(SUM($E31:$I31)=0,0,IF(COUNTIF($E31:$I31,">0")-COUNTIF($E31:$I31,"<0")<0,1,0)) -> 0 | S31: =COUNTIF($E31:$I31,">0") -> 0 | T31: =COUNTIF($E31:$I31,"<0") -> 0 | U31: =+T31 -> 0 | V31: =+S31 -> 0 | AB31: =IF(ISBLANK($E31),0,IF($E31<0,-$E31,IF($E31>9,$E31+2,11)))+IF(ISBLANK($F31),0,IF($F31<0,-$F31,IF($F31>9,$F31+2,11)))+IF(ISBLANK($G31),0,IF($G31<0,-$G31,IF($G31>9,$G31+2,11)))+IF(ISBLANK($H31),0,IF($H31<0,-$H31,IF($H31>9,$H31+2,11)))+IF(ISBLANK($I31),0,IF($I31<0,-$I31,IF($I31>9,$I31+2,11))) -> 0 | AC31: =IF(ISBLANK($E31),0,IF($E31>0,$E31,IF($E31<-9,-$E31+2,11)))+IF(ISBLANK($F31),0,IF($F31>0,$F31,IF($F31<-9,-$F31+2,11)))+IF(ISBLANK($G31),0,IF($G31>0,$G31,IF($G31<-9,-$G31+2,11)))+IF(ISBLANK($H31),0,IF($H31>0,$H31,IF($H31<-9,-$H31+2,11)))+IF(ISBLANK($I31),0,IF($I31>0,$I31,IF($I31<-9,-$I31+2,11))) -> 0 | AD31: =+AC31 -> 0 | AE31: =+AB31 -> 0
I32: Total | J32: =SUM(J26:J31) -> 2 | K32: =SUM(K26:K31) -> 0 | L32: =SUM(L26:L31) -> 1 | M32: =SUM(M26:M31) -> 0 | O32: =SUM(O26:O31) -> 6 | P32: 0 | Q32: 2 | R32: 6 | S32: 3 | T32: 5 | U32: 0 | V32: 0 | X32: =SUM(X26:X31) -> 66 | Y32: 26 | Z32: 66 | AA32: 85 | AB32: 60 | AC32: 81 | AD32: 0 | AE32: 0
I33: Classement | J33: 1 | K33: 3 | L33: 2 | M33: 4 | O33: =IFERROR(O32/(O32+P32),0) -> 1 | Q33: =IFERROR(Q32/(Q32+R32),0) -> 0.25 | S33: =IFERROR(S32/(S32+T32),0) -> 0.375 | U33: =IFERROR(U32/(U32+V32),0) -> 0 | X33: =IFERROR(X32/(X32+Y32),0) -> 0.7173913043 | Z33: =IFERROR(Z32/(Z32+AA32),0) -> 0.4370860927 | AB33: =IFERROR(AB32/(AB32+AC32),0) -> 0.4255319149 | AD33: =IFERROR(AD32/(AD32+AE32),0) -> 0

Sheet Poules E - F
A1: POULE | B1: E
B2: NOM Prénom | D2: Clt | F2: TABLE
A3: 1 | B3: =Tableau!F22 -> Tom | D3: 1
A4: 2 | B4: =Tableau!F23 -> Val | D4: 2
A5: 3 | B5: =Tableau!F24 -> Axel | D5: 3
A6: 4 | B6: =Tableau!F25 -> KarineLL | D6: 4 | N6: Sets | W6: Pts
M7: 1 pour victoire - 0 pour défaite | O7: 1 | Q7: 2 | S7: 3 | U7: 4 | X7: 1 | Z7: 2 | AB7: 3 | AD7: 4
B8: Nom Prénom | C8: Nom Prénom | D8: Table | E8: Scores | J8: 1 | K8: 2 | L8: 3 | M8: 4 | O8: G | P8: P | Q8: G | R8: P | S8: G | T8: P | U8: G | V8: P | X8: G | Y8: P | Z8: G | AA8: P | AB8: G | AC8: P | AD8: G | AE8: P
A9: 1 contre 4 | B9: =B3 -> Tom | C9: =B6 -> KarineLL | D9: 5 | E9: 3 | F9: 5 | G9: 4 | J9: =IF(SUM($E9:$I9)=0,0,IF(COUNTIF($E9:$I9,">0")-COUNTIF($E9:$I9,"<0")>0,1,0)) -> 1 | M9: =IF(SUM($E9:$I9)=0,0,IF(COUNTIF($E9:$I9,">0")-COUNTIF($E9:$I9,"<0")<0,1,0)) -> 0 | O9: =COUNTIF($E9:$I9,">0") -> 3 | P9: =COUNTIF($E9:$I9,"<0") -> 0 | U9: =P9 -> 0 | V9: =O9 -> 3 | X9: =IF(ISBLANK($E9),0,IF($E9<0,-$E9,IF($E9>9,$E9+2,11)))+IF(ISBLANK($F9),0,IF($F9<0,-$F9,IF($F9>9,$F9+2,11)))+IF(ISBLANK($G9),0,IF($G9<0,-$G9,IF($G9>9,$G9+2,11)))+IF(ISBLANK($H9),0,IF($H9<0,-$H9,IF($H9>9,$H9+2,11)))+IF(ISBLANK($I9),0,IF($I9<0,-$I9,IF($I9>9,$I9+2,11))) -> 33 | Y9: =IF(ISBLANK($E9),0,IF($E9>0,$E9,IF($E9<-9,-$E9+2,11)))+IF(ISBLANK($F9),0,IF($F9>0,$F9,IF($F9<-9,-$F9+2,11)))+IF(ISBLANK($G9),0,IF($G9>0,$G9,IF($G9<-9,-$G9+2,11)))+IF(ISBLANK($H9),0,IF($H9>0,$H9,IF($H9<-9,-$H9+2,11)))+IF(ISBLANK($I9),0,IF($I9>0,$I9,IF($I9<-9,-$I9+2,11))) -> 12 | AD9: =Y9 -> 12 | AE9: =X9 -> 33
A10: 2 contre 3 | B10: =B4 -> Val | C10: =B5 -> Axel | D10: 5 | E10: 7 | F10: 2 | G10: 5 | K10: =IF(SUM($E10:$I10)=0,0,IF(COUNTIF($E10:$I10,">0")-COUNTIF($E10:$I10,"<0")>0,1,0)) -> 1 | L10: =IF(SUM($E10:$I10)=0,0,IF(COUNTIF($E10:$I10,">0")-COUNTIF($E10:$I10,"<0")<0,1,0)) -> 0 | Q10: =COUNTIF($E10:$I10,">0") -> 3 | R10: =COUNTIF($E10:$I10,"<0") -> 0 | S10: =+R10 -> 0 | T10: =+Q10 -> 3 | Z10: =IF(ISBLANK($E10),0,IF($E10<0,-$E10,IF($E10>9,$E10+2,11)))+IF(ISBLANK($F10),0,IF($F10<0,-$F10,IF($F10>9,$F10+2,11)))+IF(ISBLANK($G10),0,IF($G10<0,-$G10,IF($G10>9,$G10+2,11)))+IF(ISBLANK($H10),0,IF($H10<0,-$H10,IF($H10>9,$H10+2,11)))+IF(ISBLANK($I10),0,IF($I10<0,-$I10,IF($I10>9,$I10+2,11))) -> 33 | AA10: =IF(ISBLANK($E10),0,IF($E10>0,$E10,IF($E10<-9,-$E10+2,11)))+IF(ISBLANK($F10),0,IF($F10>0,$F10,IF($F10<-9,-$F10+2,11)))+IF(ISBLANK($G10),0,IF($G10>0,$G10,IF($G10<-9,-$G10+2,11)))+IF(ISBLANK($H10),0,IF($H10>0,$H10,IF($H10<-9,-$H10+2,11)))+IF(ISBLANK($I10),0,IF($I10>0,$I10,IF($I10<-9,-$I10+2,11))) -> 14 | AB10: =+AA10 -> 14 | AC10: =+Z10 -> 33
A11: 1 contre 3 | B11: =B3 -> Tom | C11: =B5 -> Axel | D11: 5 | E11: 7 | F11: 5 | G11: 4 | J11: =IF(SUM($E11:$I11)=0,0,IF(COUNTIF($E11:$I11,">0")-COUNTIF($E11:$I11,"<0")>0,1,0)) -> 1 | L11: =IF(SUM($E11:$I11)=0,0,IF(COUNTIF($E11:$I11,">0")-COUNTIF($E11:$I11,"<0")<0,1,0)) -> 0 | O11: =COUNTIF($E11:$I11,">0") -> 3 | P11: =COUNTIF($E11:$I11,"<0") -> 0 | S11: =+P11 -> 0 | T11: =+O11 -> 3 | X11: =IF(ISBLANK($E11),0,IF($E11<0,-$E11,IF($E11>9,$E11+2,11)))+IF(ISBLANK($F11),0,IF($F11<0,-$F11,IF($F11>9,$F11+2,11)))+IF(ISBLANK($G11),0,IF($G11<0,-$G11,IF($G11>9,$G11+2,11)))+IF(ISBLANK($H11),0,IF($H11<0,-$H11,IF($H11>9,$H11+2,11)))+IF(ISBLANK($I11),0,IF($I11<0,-$I11,IF($I11>9,$I11+2,11))) -> 33 | Y11: =IF(ISBLANK($E11),0,IF($E11>0,$E11,IF($E11<-9,-$E11+2,11)))+IF(ISBLANK($F11),0,IF($F11>0,$F11,IF($F11<-9,-$F11+2,11)))+IF(ISBLANK($G11),0,IF($G11>0,$G11,IF($G11<-9,-$G11+2,11)))+IF(ISBLANK($H11),0,IF($H11>0,$H11,IF($H11<-9,-$H11+2,11)))+IF(ISBLANK($I11),0,IF($I11>0,$I11,IF($I11<-9,-$I11+2,11))) -> 16 | AB11: =+Y11 -> 16 | AC11: =+X11 -> 33
A12: 2 contre 4 | B12: =B4 -> Val | C12: =B6 -> KarineLL | D12: 5 | E12: 7 | F12: 3 | G12: 5 | K12: =IF(SUM($E12:$I12)=0,0,IF(COUNTIF($E12:$I12,">0")-COUNTIF($E12:$I12,"<0")>0,1,0)) -> 1 | M12: =IF(SUM($E12:$I12)=0,0,IF(COUNTIF($E12:$I12,">0")-COUNTIF($E12:$I12,"<0")<0,1,0)) -> 0 | Q12: =COUNTIF($E12:$I12,">0") -> 3 | R12: =COUNTIF($E12:$I12,"<0") -> 0 | U12: =+R12 -> 0 | V12: =+Q12 -> 3 | Z12: =IF(ISBLANK($E12),0,IF($E12<0,-$E12,IF($E12>9,$E12+2,11)))+IF(ISBLANK($F12),0,IF($F12<0,-$F12,IF($F12>9,$F12+2,11)))+IF(ISBLANK($G12),0,IF($G12<0,-$G12,IF($G12>9,$G12+2,11)))+IF(ISBLANK($H12),0,IF($H12<0,-$H12,IF($H12>9,$H12+2,11)))+IF(ISBLANK($I12),0,IF($I12<0,-$I12,IF($I12>9,$I12+2,11))) -> 33 | AA12: =IF(ISBLANK($E12),0,IF($E12>0,$E12,IF($E12<-9,-$E12+2,11)))+IF(ISBLANK($F12),0,IF($F12>0,$F12,IF($F12<-9,-$F12+2,11)))+IF(ISBLANK($G12),0,IF($G12>0,$G12,IF($G12<-9,-$G12+2,11)))+IF(ISBLANK($H12),0,IF($H12>0,$H12,IF($H12<-9,-$H12+2,11)))+IF(ISBLANK($I12),0,IF($I12>0,$I12,IF($I12<-9,-$I12+2,11))) -> 15 | AD12: =+AA12 -> 15 | AE12: =+Z12 -> 33
A13: 1 contre 2 | B13: =B3 -> Tom | C13: =B4 -> Val | E13: 8 | F13: 8 | G13: 9 | J13: =IF(SUM($E13:$I13)=0,0,IF(COUNTIF($E13:$I13,">0")-COUNTIF($E13:$I13,"<0")>0,1,0)) -> 1 | K13: =IF(SUM($E13:$I13)=0,0,IF(COUNTIF($E13:$I13,">0")-COUNTIF($E13:$I13,"<0")<0,1,0)) -> 0 | O13: =COUNTIF($E13:$I13,">0") -> 3 | P13: =COUNTIF($E13:$I13,"<0") -> 0 | Q13: =+P13 -> 0 | R13: =+O13 -> 3 | X13: =IF(ISBLANK($E13),0,IF($E13<0,-$E13,IF($E13>9,$E13+2,11)))+IF(ISBLANK($F13),0,IF($F13<0,-$F13,IF($F13>9,$F13+2,11)))+IF(ISBLANK($G13),0,IF($G13<0,-$G13,IF($G13>9,$G13+2,11)))+IF(ISBLANK($H13),0,IF($H13<0,-$H13,IF($H13>9,$H13+2,11)))+IF(ISBLANK($I13),0,IF($I13<0,-$I13,IF($I13>9,$I13+2,11))) -> 33 | Y13: =IF(ISBLANK($E13),0,IF($E13>0,$E13,IF($E13<-9,-$E13+2,11)))+IF(ISBLANK($F13),0,IF($F13>0,$F13,IF($F13<-9,-$F13+2,11)))+IF(ISBLANK($G13),0,IF($G13>0,$G13,IF($G13<-9,-$G13+2,11)))+IF(ISBLANK($H13),0,IF($H13>0,$H13,IF($H13<-9,-$H13+2,11)))+IF(ISBLANK($I13),0,IF($I13>0,$I13,IF($I13<-9,-$I13+2,11))) -> 25 | Z13: =+Y13 -> 25 | AA13: =+X13 -> 33
A14: 3 contre 4 | B14: =B5 -> Axel | C14: =B6 -> KarineLL | L14: =IF(SUM($E14:$I14)=0,0,IF(COUNTIF($E14:$I14,">0")-COUNTIF($E14:$I14,"<0")>0,1,0)) -> 0 | M14: =IF(SUM($E14:$I14)=0,0,IF(COUNTIF($E14:$I14,">0")-COUNTIF($E14:$I14,"<0")<0,1,0)) -> 0 | S14: =COUNTIF($E14:$I14,">0") -> 0 | T14: =COUNTIF($E14:$I14,"<0") -> 0 | U14: =+T14 -> 0 | V14: =+S14 -> 0 | AB14: =IF(ISBLANK($E14),0,IF($E14<0,-$E14,IF($E14>9,$E14+2,11)))+IF(ISBLANK($F14),0,IF($F14<0,-$F14,IF($F14>9,$F14+2,11)))+IF(ISBLANK($G14),0,IF($G14<0,-$G14,IF($G14>9,$G14+2,11)))+IF(ISBLANK($H14),0,IF($H14<0,-$H14,IF($H14>9,$H14+2,11)))+IF(ISBLANK($I14),0,IF($I14<0,-$I14,IF($I14>9,$I14+2,11))) -> 0 | AC14: =IF(ISBLANK($E14),0,IF($E14>0,$E14,IF($E14<-9,-$E14+2,11)))+IF(ISBLANK($F14),0,IF($F14>0,$F14,IF($F14<-9,-$F14+2,11)))+IF(ISBLANK($G14),0,IF($G14>0,$G14,IF($G14<-9,-$G14+2,11)))+IF(ISBLANK($H14),0,IF($H14>0,$H14,IF($H14<-9,-$H14+2,11)))+IF(ISBLANK($I14),0,IF($I14>0,$I14,IF($I14<-9,-$I14+2,11))) -> 0 | AD14: =+AC14 -> 0 | AE14: =+AB14 -> 0
I15: Total | J15: =SUM(J9:J14) -> 3 | K15: =SUM(K9:K14) -> 2 | L15: =SUM(L9:L14) -> 0 | M15: =SUM(M9:M14) -> 0 | O15: =SUM(O9:O14) -> 9 | P15: 0 | Q15: 6 | R15: 3 | S15: 0 | T15: 6 | U15: 0 | V15: 6 | X15: =SUM(X9:X14) -> 99 | Y15: 53 | Z15: 91 | AA15: 62 | AB15: 30 | AC15: 66 | AD15: 27 | AE15: 66
I16: Classement | J16: 1 | K16: 2 | L16: 3 | M16: 4 | O16: =IFERROR(O15/(O15+P15),0) -> 1 | Q16: =IFERROR(Q15/(Q15+R15),0) -> 0.6666666667 | S16: =IFERROR(S15/(S15+T15),0) -> 0 | U16: =IFERROR(U15/(U15+V15),0) -> 0 | X16: =IFERROR(X15/(X15+Y15),0) -> 0.6513157895 | Z16: =IFERROR(Z15/(Z15+AA15),0) -> 0.5947712418 | AB16: =IFERROR(AB15/(AB15+AC15),0) -> 0.3125 | AD16: =IFERROR(AD15/(AD15+AE15),0) -> 0.2903225806
A18: POULE | B18: F
B19: NOM Prénom | D19: Clt | F19: TABLE
A20: 1 | B20: =Tableau!F27 -> Flo | D20: 1
A21: 2 | B21: =Tableau!F28 -> Maxime | D21: 2
A22: 3 | B22: =Tableau!F29 -> Benjamin | D22: 3
A23: 4 | B23: =Tableau!F30 -> Jules | D23: 4 | N23: Sets | W23: Pts
M24: 1 pour victoire - 0 pour défaite | O24: 1 | Q24: 2 | S24: 3 | U24: 4 | X24: 1 | Z24: 2 | AB24: 3 | AD24: 4
B25: Nom Prénom | C25: Nom Prénom | D25: Table | E25: Scores | J25: 1 | K25: 2 | L25: 3 | M25: 4 | O25: G | P25: P | Q25: G | R25: P | S25: G | T25: P | U25: G | V25: P | X25: G | Y25: P | Z25: G | AA25: P | AB25: G | AC25: P | AD25: G | AE25: P
A26: 1 contre 4 | B26: =B20 -> Flo | C26: =B23 -> Jules | D26: 6 | E26: 8 | F26: 7 | G26: 3 | J26: =IF(SUM($E26:$I26)=0,0,IF(COUNTIF($E26:$I26,">0")-COUNTIF($E26:$I26,"<0")>0,1,0)) -> 1 | M26: =IF(SUM($E26:$I26)=0,0,IF(COUNTIF($E26:$I26,">0")-COUNTIF($E26:$I26,"<0")<0,1,0)) -> 0 | O26: =COUNTIF($E26:$I26,">0") -> 3 | P26: =COUNTIF($E26:$I26,"<0") -> 0 | U26: =P26 -> 0 | V26: =O26 -> 3 | X26: =IF(ISBLANK($E26),0,IF($E26<0,-$E26,IF($E26>9,$E26+2,11)))+IF(ISBLANK($F26),0,IF($F26<0,-$F26,IF($F26>9,$F26+2,11)))+IF(ISBLANK($G26),0,IF($G26<0,-$G26,IF($G26>9,$G26+2,11)))+IF(ISBLANK($H26),0,IF($H26<0,-$H26,IF($H26>9,$H26+2,11)))+IF(ISBLANK($I26),0,IF($I26<0,-$I26,IF($I26>9,$I26+2,11))) -> 33 | Y26: =IF(ISBLANK($E26),0,IF($E26>0,$E26,IF($E26<-9,-$E26+2,11)))+IF(ISBLANK($F26),0,IF($F26>0,$F26,IF($F26<-9,-$F26+2,11)))+IF(ISBLANK($G26),0,IF($G26>0,$G26,IF($G26<-9,-$G26+2,11)))+IF(ISBLANK($H26),0,IF($H26>0,$H26,IF($H26<-9,-$H26+2,11)))+IF(ISBLANK($I26),0,IF($I26>0,$I26,IF($I26<-9,-$I26+2,11))) -> 18 | AD26: =Y26 -> 18 | AE26: =X26 -> 33
A27: 2 contre 3 | B27: =B21 -> Maxime | C27: =B22 -> Benjamin | D27: 6 | E27: 11 | F27: 5 | G27: 8 | K27: =IF(SUM($E27:$I27)=0,0,IF(COUNTIF($E27:$I27,">0")-COUNTIF($E27:$I27,"<0")>0,1,0)) -> 1 | L27: =IF(SUM($E27:$I27)=0,0,IF(COUNTIF($E27:$I27,">0")-COUNTIF($E27:$I27,"<0")<0,1,0)) -> 0 | Q27: =COUNTIF($E27:$I27,">0") -> 3 | R27: =COUNTIF($E27:$I27,"<0") -> 0 | S27: =+R27 -> 0 | T27: =+Q27 -> 3 | Z27: =IF(ISBLANK($E27),0,IF($E27<0,-$E27,IF($E27>9,$E27+2,11)))+IF(ISBLANK($F27),0,IF($F27<0,-$F27,IF($F27>9,$F27+2,11)))+IF(ISBLANK($G27),0,IF($G27<0,-$G27,IF($G27>9,$G27+2,11)))+IF(ISBLANK($H27),0,IF($H27<0,-$H27,IF($H27>9,$H27+2,11)))+IF(ISBLANK($I27),0,IF($I27<0,-$I27,IF($I27>9,$I27+2,11))) -> 35 | AA27: =IF(ISBLANK($E27),0,IF($E27>0,$E27,IF($E27<-9,-$E27+2,11)))+IF(ISBLANK($F27),0,IF($F27>0,$F27,IF($F27<-9,-$F27+2,11)))+IF(ISBLANK($G27),0,IF($G27>0,$G27,IF($G27<-9,-$G27+2,11)))+IF(ISBLANK($H27),0,IF($H27>0,$H27,IF($H27<-9,-$H27+2,11)))+IF(ISBLANK($I27),0,IF($I27>0,$I27,IF($I27<-9,-$I27+2,11))) -> 24 | AB27: =+AA27 -> 24 | AC27: =+Z27 -> 35
A28: 1 contre 3 | B28: =B20 -> Flo | C28: =B22 -> Benjamin | D28: 6 | E28: 5 | F28: 5 | G28: 5 | J28: =IF(SUM($E28:$I28)=0,0,IF(COUNTIF($E28:$I28,">0")-COUNTIF($E28:$I28,"<0")>0,1,0)) -> 1 | L28: =IF(SUM($E28:$I28)=0,0,IF(COUNTIF($E28:$I28,">0")-COUNTIF($E28:$I28,"<0")<0,1,0)) -> 0 | O28: =COUNTIF($E28:$I28,">0") -> 3 | P28: =COUNTIF($E28:$I28,"<0") -> 0 | S28: =+P28 -> 0 | T28: =+O28 -> 3 | X28: =IF(ISBLANK($E28),0,IF($E28<0,-$E28,IF($E28>9,$E28+2,11)))+IF(ISBLANK($F28),0,IF($F28<0,-$F28,IF($F28>9,$F28+2,11)))+IF(ISBLANK($G28),0,IF($G28<0,-$G28,IF($G28>9,$G28+2,11)))+IF(ISBLANK($H28),0,IF($H28<0,-$H28,IF($H28>9,$H28+2,11)))+IF(ISBLANK($I28),0,IF($I28<0,-$I28,IF($I28>9,$I28+2,11))) -> 33 | Y28: =IF(ISBLANK($E28),0,IF($E28>0,$E28,IF($E28<-9,-$E28+2,11)))+IF(ISBLANK($F28),0,IF($F28>0,$F28,IF($F28<-9,-$F28+2,11)))+IF(ISBLANK($G28),0,IF($G28>0,$G28,IF($G28<-9,-$G28+2,11)))+IF(ISBLANK($H28),0,IF($H28>0,$H28,IF($H28<-9,-$H28+2,11)))+IF(ISBLANK($I28),0,IF($I28>0,$I28,IF($I28<-9,-$I28+2,11))) -> 15 | AB28: =+Y28 -> 15 | AC28: =+X28 -> 33
A29: 2 contre 4 | B29: =B21 -> Maxime | C29: =B23 -> Jules | D29: 6 | E29: 2 | F29: 4 | G29: 2 | K29: =IF(SUM($E29:$I29)=0,0,IF(COUNTIF($E29:$I29,">0")-COUNTIF($E29:$I29,"<0")>0,1,0)) -> 1 | M29: =IF(SUM($E29:$I29)=0,0,IF(COUNTIF($E29:$I29,">0")-COUNTIF($E29:$I29,"<0")<0,1,0)) -> 0 | Q29: =COUNTIF($E29:$I29,">0") -> 3 | R29: =COUNTIF($E29:$I29,"<0") -> 0 | U29: =+R29 -> 0 | V29: =+Q29 -> 3 | Z29: =IF(ISBLANK($E29),0,IF($E29<0,-$E29,IF($E29>9,$E29+2,11)))+IF(ISBLANK($F29),0,IF($F29<0,-$F29,IF($F29>9,$F29+2,11)))+IF(ISBLANK($G29),0,IF($G29<0,-$G29,IF($G29>9,$G29+2,11)))+IF(ISBLANK($H29),0,IF($H29<0,-$H29,IF($H29>9,$H29+2,11)))+IF(ISBLANK($I29),0,IF($I29<0,-$I29,IF($I29>9,$I29+2,11))) -> 33 | AA29: =IF(ISBLANK($E29),0,IF($E29>0,$E29,IF($E29<-9,-$E29+2,11)))+IF(ISBLANK($F29),0,IF($F29>0,$F29,IF($F29<-9,-$F29+2,11)))+IF(ISBLANK($G29),0,IF($G29>0,$G29,IF($G29<-9,-$G29+2,11)))+IF(ISBLANK($H29),0,IF($H29>0,$H29,IF($H29<-9,-$H29+2,11)))+IF(ISBLANK($I29),0,IF($I29>0,$I29,IF($I29<-9,-$I29+2,11))) -> 8 | AD29: =+AA29 -> 8 | AE29: =+Z29 -> 33
A30: 1 contre 2 | B30: =B20 -> Flo | C30: =B21 -> Maxime | E30: 5 | F30: -6 | G30: -8 | H30: 8 | I30: 13 | J30: =IF(SUM($E30:$I30)=0,0,IF(COUNTIF($E30:$I30,">0")-COUNTIF($E30:$I30,"<0")>0,1,0)) -> 1 | K30: =IF(SUM($E30:$I30)=0,0,IF(COUNTIF($E30:$I30,">0")-COUNTIF($E30:$I30,"<0")<0,1,0)) -> 0 | O30: =COUNTIF($E30:$I30,">0") -> 3 | P30: =COUNTIF($E30:$I30,"<0") -> 2 | Q30: =+P30 -> 2 | R30: =+O30 -> 3 | X30: =IF(ISBLANK($E30),0,IF($E30<0,-$E30,IF($E30>9,$E30+2,11)))+IF(ISBLANK($F30),0,IF($F30<0,-$F30,IF($F30>9,$F30+2,11)))+IF(ISBLANK($G30),0,IF($G30<0,-$G30,IF($G30>9,$G30+2,11)))+IF(ISBLANK($H30),0,IF($H30<0,-$H30,IF($H30>9,$H30+2,11)))+IF(ISBLANK($I30),0,IF($I30<0,-$I30,IF($I30>9,$I30+2,11))) -> 51 | Y30: =IF(ISBLANK($E30),0,IF($E30>0,$E30,IF($E30<-9,-$E30+2,11)))+IF(ISBLANK($F30),0,IF($F30>0,$F30,IF($F30<-9,-$F30+2,11)))+IF(ISBLANK($G30),0,IF($G30>0,$G30,IF($G30<-9,-$G30+2,11)))+IF(ISBLANK($H30),0,IF($H30>0,$H30,IF($H30<-9,-$H30+2,11)))+IF(ISBLANK($I30),0,IF($I30>0,$I30,IF($I30<-9,-$I30+2,11))) -> 48 | Z30: =+Y30 -> 48 | AA30: =+X30 -> 51
A31: 3 contre 4 | B31: =B22 -> Benjamin | C31: =B23 -> Jules | D31: 6 | L31: =IF(SUM($E31:$I31)=0,0,IF(COUNTIF($E31:$I31,">0")-COUNTIF($E31:$I31,"<0")>0,1,0)) -> 0 | M31: =IF(SUM($E31:$I31)=0,0,IF(COUNTIF($E31:$I31,">0")-COUNTIF($E31:$I31,"<0")<0,1,0)) -> 0 | S31: =COUNTIF($E31:$I31,">0") -> 0 | T31: =COUNTIF($E31:$I31,"<0") -> 0 | U31: =+T31 -> 0 | V31: =+S31 -> 0 | AB31: =IF(ISBLANK($E31),0,IF($E31<0,-$E31,IF($E31>9,$E31+2,11)))+IF(ISBLANK($F31),0,IF($F31<0,-$F31,IF($F31>9,$F31+2,11)))+IF(ISBLANK($G31),0,IF($G31<0,-$G31,IF($G31>9,$G31+2,11)))+IF(ISBLANK($H31),0,IF($H31<0,-$H31,IF($H31>9,$H31+2,11)))+IF(ISBLANK($I31),0,IF($I31<0,-$I31,IF($I31>9,$I31+2,11))) -> 0 | AC31: =IF(ISBLANK($E31),0,IF($E31>0,$E31,IF($E31<-9,-$E31+2,11)))+IF(ISBLANK($F31),0,IF($F31>0,$F31,IF($F31<-9,-$F31+2,11)))+IF(ISBLANK($G31),0,IF($G31>0,$G31,IF($G31<-9,-$G31+2,11)))+IF(ISBLANK($H31),0,IF($H31>0,$H31,IF($H31<-9,-$H31+2,11)))+IF(ISBLANK($I31),0,IF($I31>0,$I31,IF($I31<-9,-$I31+2,11))) -> 0 | AD31: =+AC31 -> 0 | AE31: =+AB31 -> 0
I32: Total | J32: =SUM(J26:J31) -> 3 | K32: =SUM(K26:K31) -> 2 | L32: =SUM(L26:L31) -> 0 | M32: =SUM(M26:M31) -> 0 | O32: =SUM(O26:O31) -> 9 | P32: 2 | Q32: 8 | R32: 3 | S32: 0 | T32: 6 | U32: 0 | V32: 6 | X32: =SUM(X26:X31) -> 117 | Y32: 81 | Z32: 116 | AA32: 83 | AB32: 39 | AC32: 68 | AD32: 26 | AE32: 66
I33: Classement | J33: 1 | K33: 2 | L33: 4 | M33: 3 | O33: =IFERROR(O32/(O32+P32),0) -> 0.8181818182 | Q33: =IFERROR(Q32/(Q32+R32),0) -> 0.7272727273 | S33: =IFERROR(S32/(S32+T32),0) -> 0 | U33: =IFERROR(U32/(U32+V32),0) -> 0 | X33: =IFERROR(X32/(X32+Y32),0) -> 0.5909090909 | Z33: =IFERROR(Z32/(Z32+AA32),0) -> 0.5829145729 | AB33: =IFERROR(AB32/(AB32+AC32),0) -> 0.3644859813 | AD33: =IFERROR(AD32/(AD32+AE32),0) -> 0.2826086957

Sheet Feuil1
A1: 3E | B1: =VLOOKUP(INDEX('Poules E - F'!$J$8:$M$8,MATCH(3,'Poules E - F'!$J$16:$M$16,0)),'Poules E - F'!$A$3:$C$6,2,FALSE) -> Axel | C1: =INDEX('Poules E - F'!$J$15:$M$15,MATCH(3,'Poules E - F'!$J$16:$M$16,0)) -> 0 | D1: =HLOOKUP(INDEX('Poules E - F'!$J$8:$M$8,MATCH(3,'Poules E - F'!$J$16:$M$16,0)),'Poules E - F'!$O$7:$V$16,10,FALSE) -> 0 | E1: =HLOOKUP(INDEX('Poules E - F'!$J$8:$M$8,MATCH(3,'Poules E - F'!$J$16:$M$16,0)),'Poules E - F'!$X$7:$AE$16,10,FALSE) -> 0.3125 | G1: 3B | H1: =VLOOKUP(INDEX('Poules A - B'!$J$25:$M$25,MATCH(3,'Poules A - B'!$J$33:$M$33,0)),'Poules A - B'!$A$20:$C$23,2,FALSE) -> Stephane | I1: =INDEX('Poules A - B'!$J$32:$M$32,MATCH(3,'Poules A - B'!$J$33:$M$33,0)) -> 0 | J1: =HLOOKUP(INDEX('Poules A - B'!$J$25:$M$25,MATCH(3,'Poules A - B'!$J$33:$M$33,0)),'Poules A - B'!$O$24:$V$33,10,FALSE) -> 0.3333333333 | K1: =HLOOKUP(INDEX('Poules A - B'!$J$25:$M$25,MATCH(3,'Poules A - B'!$J$33:$M$33,0)),'Poules A - B'!$X$24:$AE$33,10,FALSE) -> 0.44
A2: 3F | B2: =VLOOKUP(INDEX('Poules E - F'!$J$25:$M$25,MATCH(3,'Poules E - F'!$J$33:$M$33,0)),'Poules E - F'!$A$20:$C$23,2,FALSE) -> Jules | C2: =INDEX('Poules E - F'!$J$32:$M$32,MATCH(3,'Poules E - F'!$J$33:$M$33,0)) -> 0 | D2: =HLOOKUP(INDEX('Poules E - F'!$J$25:$M$25,MATCH(3,'Poules E - F'!$J$33:$M$33,0)),'Poules E - F'!$O$24:$V$33,10,FALSE) -> 0 | E2: =HLOOKUP(INDEX('Poules E - F'!$J$25:$M$25,MATCH(3,'Poules E - F'!$J$33:$M$33,0)),'Poules E - F'!$X$24:$AE$33,10,FALSE) -> 0.2826086957 | G2: 3D | H2: =VLOOKUP(INDEX('Poules C - D'!$J$25:$M$25,MATCH(3,'Poules C - D'!$J$33:$M$33,0)),'Poules C - D'!$A$20:$C$23,2,FALSE) -> Eric | I2: =INDEX('Poules C - D'!$J$32:$M$32,MATCH(3,'Poules C - D'!$J$33:$M$33,0)) -> 0 | J2: =HLOOKUP(INDEX('Poules C - D'!$J$25:$M$25,MATCH(3,'Poules C - D'!$J$33:$M$33,0)),'Poules C - D'!$O$24:$V$33,10,FALSE) -> 0.25 | K2: =HLOOKUP(INDEX('Poules C - D'!$J$25:$M$25,MATCH(3,'Poules C - D'!$J$33:$M$33,0)),'Poules C - D'!$X$24:$AE$33,10,FALSE) -> 0.4370860927
A3: 3B | B3: =VLOOKUP(INDEX('Poules A - B'!$J$25:$M$25,MATCH(3,'Poules A - B'!$J$33:$M$33,0)),'Poules A - B'!$A$20:$C$23,2,FALSE) -> Stephane | C3: =INDEX('Poules A - B'!$J$32:$M$32,MATCH(3,'Poules A - B'!$J$33:$M$33,0)) -> 0 | D3: =HLOOKUP(INDEX('Poules A - B'!$J$25:$M$25,MATCH(3,'Poules A - B'!$J$33:$M$33,0)),'Poules A - B'!$O$24:$V$33,10,FALSE) -> 0.3333333333 | E3: =HLOOKUP(INDEX('Poules A - B'!$J$25:$M$25,MATCH(3,'Poules A - B'!$J$33:$M$33,0)),'Poules A - B'!$X$24:$AE$33,10,FALSE) -> 0.44 | G3: 3A | H3: =VLOOKUP(INDEX('Poules A - B'!$J$8:$M$8,MATCH(3,'Poules A - B'!$J$16:$M$16,0)),'Poules A - B'!$A$3:$C$6,2,FALSE) -> SebAZ | I3: =INDEX('Poules A - B'!$J$15:$M$15,MATCH(3,'Poules A - B'!$J$16:$M$16,0)) -> 0 | J3: =HLOOKUP(INDEX('Poules A - B'!$J$8:$M$8,MATCH(3,'Poules A - B'!$J$16:$M$16,0)),'Poules A - B'!$O$7:$V$16,10,FALSE) -> 0.1428571429 | K3: =HLOOKUP(INDEX('Poules A - B'!$J$8:$M$8,MATCH(3,'Poules A - B'!$J$16:$M$16,0)),'Poules A - B'!$X$7:$AE$16,10,FALSE) -> 0.4074074074
A4: 3D | B4: =VLOOKUP(INDEX('Poules C - D'!$J$25:$M$25,MATCH(3,'Poules C - D'!$J$33:$M$33,0)),'Poules C - D'!$A$20:$C$23,2,FALSE) -> Eric | C4: =INDEX('Poules C - D'!$J$32:$M$32,MATCH(3,'Poules C - D'!$J$33:$M$33,0)) -> 0 | D4: =HLOOKUP(INDEX('Poules C - D'!$J$25:$M$25,MATCH(3,'Poules C - D'!$J$33:$M$33,0)),'Poules C - D'!$O$24:$V$33,10,FALSE) -> 0.25 | E4: =HLOOKUP(INDEX('Poules C - D'!$J$25:$M$25,MATCH(3,'Poules C - D'!$J$33:$M$33,0)),'Poules C - D'!$X$24:$AE$33,10,FALSE) -> 0.4370860927 | G4: 3C | H4: =VLOOKUP(INDEX('Poules C - D'!$J$8:$M$8,MATCH(3,'Poules C - D'!$J$16:$M$16,0)),'Poules C - D'!$A$3:$C$6,2,FALSE) -> Romain | I4: =INDEX('Poules C - D'!$J$15:$M$15,MATCH(3,'Poules C - D'!$J$16:$M$16,0)) -> 0 | J4: =HLOOKUP(INDEX('Poules C - D'!$J$8:$M$8,MATCH(3,'Poules C - D'!$J$16:$M$16,0)),'Poules C - D'!$O$7:$V$16,10,FALSE) -> 0 | K4: =HLOOKUP(INDEX('Poules C - D'!$J$8:$M$8,MATCH(3,'Poules C - D'!$J$16:$M$16,0)),'Poules C - D'!$X$7:$AE$16,10,FALSE) -> 0.3660714286
A5: 3A | B5: =VLOOKUP(INDEX('Poules A - B'!$J$8:$M$8,MATCH(3,'Poules A - B'!$J$16:$M$16,0)),'Poules A - B'!$A$3:$C$6,2,FALSE) -> SebAZ | C5: =INDEX('Poules A - B'!$J$15:$M$15,MATCH(3,'Poules A - B'!$J$16:$M$16,0)) -> 0 | D5: =HLOOKUP(INDEX('Poules A - B'!$J$8:$M$8,MATCH(3,'Poules A - B'!$J$16:$M$16,0)),'Poules A - B'!$O$7:$V$16,10,FALSE) -> 0.1428571429 | E5: =HLOOKUP(INDEX('Poules A - B'!$J$8:$M$8,MATCH(3,'Poules A - B'!$J$16:$M$16,0)),'Poules A - B'!$X$7:$AE$16,10,FALSE) -> 0.4074074074 | G5: 3E | H5: =VLOOKUP(INDEX('Poules E - F'!$J$8:$M$8,MATCH(3,'Poules E - F'!$J$16:$M$16,0)),'Poules E - F'!$A$3:$C$6,2,FALSE) -> Axel | I5: =INDEX('Poules E - F'!$J$15:$M$15,MATCH(3,'Poules E - F'!$J$16:$M$16,0)) -> 0 | J5: =HLOOKUP(INDEX('Poules E - F'!$J$8:$M$8,MATCH(3,'Poules E - F'!$J$16:$M$16,0)),'Poules E - F'!$O$7:$V$16,10,FALSE) -> 0 | K5: =HLOOKUP(INDEX('Poules E - F'!$J$8:$M$8,MATCH(3,'Poules E - F'!$J$16:$M$16,0)),'Poules E - F'!$X$7:$AE$16,10,FALSE) -> 0.3125
A6: 3C | B6: =VLOOKUP(INDEX('Poules C - D'!$J$8:$M$8,MATCH(3,'Poules C - D'!$J$16:$M$16,0)),'Poules C - D'!$A$3:$C$6,2,FALSE) -> Romain | C6: =INDEX('Poules C - D'!$J$15:$M$15,MATCH(3,'Poules C - D'!$J$16:$M$16,0)) -> 0 | D6: =HLOOKUP(INDEX('Poules C - D'!$J$8:$M$8,MATCH(3,'Poules C - D'!$J$16:$M$16,0)),'Poules C - D'!$O$7:$V$16,10,FALSE) -> 0 | E6: =HLOOKUP(INDEX('Poules C - D'!$J$8:$M$8,MATCH(3,'Poules C - D'!$J$16:$M$16,0)),'Poules C - D'!$X$7:$AE$16,10,FALSE) -> 0.3660714286 | G6: 3F | H6: =VLOOKUP(INDEX('Poules E - F'!$J$25:$M$25,MATCH(3,'Poules E - F'!$J$33:$M$33,0)),'Poules E - F'!$A$20:$C$23,2,FALSE) -> Jules | I6: =INDEX('Poules E - F'!$J$32:$M$32,MATCH(3,'Poules E - F'!$J$33:$M$33,0)) -> 0 | J6: =HLOOKUP(INDEX('Poules E - F'!$J$25:$M$25,MATCH(3,'Poules E - F'!$J$33:$M$33,0)),'Poules E - F'!$O$24:$V$33,10,FALSE) -> 0 | K6: =HLOOKUP(INDEX('Poules E - F'!$J$25:$M$25,MATCH(3,'Poules E - F'!$J$33:$M$33,0)),'Poules E - F'!$X$24:$AE$33,10,FALSE) -> 0.2826086957
